{"text_format":"1","workbook":"xlsx","n_sheets":6,"sheets":["Заявки","Нач. инф.","Расп. занят.","Расп. занят. выбор.","Расп. преп.","Расп. ауд."],"not_rendered":{"charts":0,"images":8,"macros":1,"external_links":0,"defined_names":0,"comments":0,"pivot_tables":0},"unopened":[],"bounds":{"document_bytes":16777216,"sheet_cells":100000,"rows_first":2000,"rows_last":500,"rows_between":2000,"halvings":0,"cell_chars":16384,"cell_head_chars":4096},"cells_cut":0,"cells_raw":0,"read":"whole","date_system":"1900"}

{"sheet":"Заявки","index":0,"n_rows":538,"n_cols":10,"rows_kept":538,"cut":false,"hidden":false,"merged":[]}
[]
[]
["Преподаватель","День","Время","Поток","Группа","Кол-во студентов","Дисциплина","Тип дисциплины","Номер аудитории","Вместительност"]
["k.oʻqit. Maxmudov O.","Seshanba","08:00-09:20","MMT-20","MMT-120",31,"Moliya","ma'ruza",414,100]
["k.oʻqit. Maxmudov O.","Seshanba","08:00-09:20","MMT-20","MMT-220",30,"Moliya","ma'ruza",414,100]
["k.oʻqit. Maxmudov O.","Seshanba","08:00-09:20","MMT-20","MMT-320",23,"Moliya","ma'ruza",414,100]
["k.oʻqit. Maxmudov O.","Seshanba","11:00-12:50","MMT-20","MMT-120",31,"Moliya","amaliy",220,35]
["k.oʻqit. Maxmudov O.","Chorshanba","09:30-10:50","MMT-20","MMT-220",30,"Moliya","amaliy",320,35]
["k.oʻqit. Maxmudov O.","Chorshanba","11:00-12:50","MMT-20","MMT-320",23,"Moliya","amaliy",413,35]
["k.oʻqit. Maxmudov O.","Seshanba","14:30-15:50","M-19","M-119",23,"Moliya","amaliy",110,50]
["k.oʻqit. Maxmudov O.","Seshanba","16:00-17:20","M-19","M-219",17,"Moliya","amaliy",415,50]
["k.oʻqit. Maxmudov O.","Chorshanba","13:00-14:20","M-19","M-119",23,"Moliya","ma'ruza",110,50]
["k.oʻqit. Maxmudov O.","Chorshanba","13:00-14:20","M-19","M-219",17,"Moliya","ma'ruza",110,50]
["dots. Avazov E.","Seshanba","14:30-15:50","MMT-21","MMT-121",28,"Pul va banklar","ma'ruza",409,100]
["dots. Avazov E.","Seshanba","14:30-15:50","MMT-21","MMT-221",30,"Pul va banklar","ma'ruza",409,100]
["dots. Avazov E.","Chorshanba","14:30-15:50","MMT-21","MMT-121",28,"Pul va banklar","amaliy",410,35]
["dots. Avazov E.","Payshanba","14:30-15:50","MMT-21","MMT-221",30,"Pul va banklar","amaliy",411,35]
["PhD. Toʻlakov U.","Seshanba","13:00-14:20","M-19","M-119",23,"Davlat budjeti","ma'ruza",110,50]
["PhD. Toʻlakov U.","Seshanba","13:00-14:20","M-19","M-219",17,"Davlat budjeti","ma'ruza",110,50]
["PhD. Toʻlakov U.","Chorshanba","14:30-15:50","M-19","M-119",23,"Davlat budjeti","amaliy",110,50]
["PhD. Toʻlakov U.","Chorshanba","16:00-17:20","M-19","M-219",17,"Davlat budjeti","amaliy",415,23]
["oʻqit. Shoydaliyev U.","Seshanba","09:30-10:50","MMT-20","MMT-120",31,"Pensiya ishi","ma'ruza",414,100]
["oʻqit. Shoydaliyev U.","Seshanba","09:30-10:50","MMT-20","MMT-220",30,"Pensiya ishi","ma'ruza",414,100]
["oʻqit. Shoydaliyev U.","Seshanba","09:30-10:50","MMT-20","MMT-320",23,"Pensiya ishi","ma'ruza",414,100]
["oʻqit. Shoydaliyev U.","Chorshanba","09:30-10:50","MMT-20","MMT-120",31,"Pensiya ishi","amaliy",220,35]
["oʻqit. Shoydaliyev U.","Chorshanba","11:00-12:50","MMT-20","MMT-220",30,"Pensiya ishi","amaliy",320,35]
["oʻqit. Shoydaliyev U.","Payshanba","11:00-12:50","MMT-20","MMT-320",23,"Pensiya ishi","amaliy",413,35]
["oʻqit. Shoydaliyev U.","Dushanba","13:00-14:20","M-19","M-119",23,"Pensiya ishi","ma'ruza",110,50]
["oʻqit. Shoydaliyev U.","Dushanba","13:00-14:20","M-19","M-219",17,"Pensiya ishi","ma'ruza",110,50]
["k.oʻqit. Ismoilov Sh.","Dushanba","13:00-14:20","M-19","M-119",23,"Gʻaznachilik","ma'ruza",110,50]
["k.oʻqit. Ismoilov Sh.","Dushanba","13:00-14:20","M-19","M-219",17,"Gʻaznachilik","ma'ruza",110,50]
["oʻqit. Shoydaliyev U.","Seshanba","16:00-17:20","M-19","M-119",23,"Pensiya ishi","amaliy",110,50]
["oʻqit. Shoydaliyev U.","Seshanba","14:30-15:50","M-19","M-219",17,"Pensiya ishi","amaliy",415,23]
["k.oʻqit. Ismoilov Sh.","Seshanba","16:00-17:20","M-19","M-119",23,"Gʻaznachilik","amaliy",110,50]
["k.oʻqit. Ismoilov Sh.","Seshanba","14:30-15:50","M-19","M-219",17,"Gʻaznachilik","amaliy",415,23]
["oʻqit. Xudayarova Z.","Dushanba","13:00-14:20","Bux-21","Bux-121",29,"Statistika","ma'ruza",414,100]
["oʻqit. Xudayarova Z.","Dushanba","13:00-14:20","Bux-21","Bux-221",32,"Statistika","ma'ruza",414,100]
["oʻqit. Xudayarova Z.","Seshanba","16:00-17:20","Bux-21","Bux-121",29,"Statistika","amaliy",412,35]
["oʻqit. Xudayarova Z.","Seshanba","14:30-15:50","Bux-21","Bux-221",32,"Statistika","amaliy",413,35]
["oʻqit. Axmedov A.","Dushanba","08:00-09:20","I-20","I-120",31,"Strategik boshqaruv ","ma'ruza","3-qavat zal",100]
["oʻqit. Axmedov A.","Dushanba","08:00-09:20","I-20","I-220",31,"Strategik boshqaruv ","ma'ruza","3-qavat zal",100]
["oʻqit. Axmedov A.","Dushanba","09:30-10:50","I-20","I-320",31,"Strategik boshqaruv ","ma'ruza","2-qavat zal",80]
["oʻqit. Axmedov A.","Dushanba","09:30-10:50","I-20","I-420",34,"Strategik boshqaruv ","ma'ruza","2-qavat zal",80]
["oʻqit. Axmedov A.","Chorshanba","09:30-10:50","I-20","I-120",31,"Strategik boshqaruv ","amaliy",211,35]
["oʻqit. Axmedov A.","Chorshanba","11:00-12:50","I-20","I-220",31,"Strategik boshqaruv ","amaliy",316,35]
["oʻqit. Axmedov A.","Payshanba","08:00-09:20","I-20","I-320",31,"Strategik boshqaruv ","amaliy",323,35]
["oʻqit. Axmedov A.","Payshanba","11:00-12:50","I-20","I-420",34,"Strategik boshqaruv ","amaliy",410,35]
["oʻqit. Axmedov A.","Dushanba","14:30-15:50","Bux-21","Bux-121",32,"Mikroiqtisodiyot.Makroiqtisodiyot","ma'ruza",313,80]
["oʻqit. Axmedov A.","Dushanba","14:30-15:50","Bux-21","Bux-221",30,"Mikroiqtisodiyot.Makroiqtisodiyot","ma'ruza",313,80]
["oʻqit. Axmedov A.","Dushanba","16:00-17:20","MMT-21","MMT-121",27,"Mikroiqtisodiyot.Makroiqtisodiyot","ma'ruza",409,100]
["oʻqit. Axmedov A.","Dushanba","16:00-17:20","MMT-21","MMT-221",31,"Mikroiqtisodiyot.Makroiqtisodiyot","ma'ruza",409,100]
["oʻqit. Axmedov A.","Chorshanba","13:00-14:20","MMT-21","MMT-121",27,"Mikroiqtisodiyot.Makroiqtisodiyot","amaliy",410,35]
["oʻqit. Axmedov A.","Chorshanba","16:00-17:20","MMT-21","MMT-221",31,"Mikroiqtisodiyot.Makroiqtisodiyot","amaliy",411,35]
["oʻqit. Axmedov A.","Seshanba","14:30-15:50","Bux-21","Bux-121",32,"Mikroiqtisodiyot.Makroiqtisodiyot","amaliy",412,35]
["oʻqit. Axmedov A.","Seshanba","16:00-17:20","Bux-21","Bux-221",30,"Mikroiqtisodiyot.Makroiqtisodiyot","amaliy",413,35]
["oʻqit. Axmedov A.","Seshanba","11:00-12:50","Bux-20","Bux-120",26,"Manejment. Marketing","ma'ruza",414,100]
["oʻqit. Axmedov A.","Seshanba","11:00-12:50","Bux-20","Bux-220",32,"Manejment. Marketing","ma'ruza",414,100]
["oʻqit. Axmedov A.","Juma","08:00-09:20","Bux-20","Bux-220",32,"Manejment. Marketing","amaliy",112,50]
["oʻqit. Axmedov A.","Juma","09:30-10:50","Bux-20","Bux-120",26,"Manejment. Marketing","amaliy",217,35]
["k.oʻqit. Norkobilov N.","Chorshanba","08:00-09:20","Bux-22","Bux-122",25,"Iqtisodiyot nazariyasi","ma'ruza",414,100]
["k.oʻqit. Norkobilov N.","Chorshanba","08:00-09:20","Bux-22","Bux-222",25,"Iqtisodiyot nazariyasi","ma'ruza",414,100]
["k.oʻqit. Norkobilov N.","Chorshanba","08:00-09:20","MMT-22","MMT-122",25,"Iqtisodiyot nazariyasi","ma'ruza",414,100]
["k.oʻqit. Norkobilov N.","Chorshanba","08:00-09:20","MMT-22","MMT-222",25,"Iqtisodiyot nazariyasi","ma'ruza",414,100]
["k.oʻqit. Norkobilov N.","Payshanba","08:00-09:20","MMT-22","MMT-122",25,"Iqtisodiyot nazariyasi","amaliy",410,35]
["k.oʻqit. Norkobilov N.","Payshanba","11:00-12:50","MMT-22","MMT-222",25,"Iqtisodiyot nazariyasi","amaliy",411,35]
["k.oʻqit. Norkobilov N.","Juma","08:00-09:20","Bux-22","Bux-122",25,"Iqtisodiyot nazariyasi","amaliy",412,35]
["k.oʻqit. Norkobilov N.","Juma","09:30-10:50","Bux-22","Bux-222",25,"Iqtisodiyot nazariyasi","amaliy",413,35]
["k.oʻqit. Norkobilov N.","Seshanba","13:00-14:20","MX-21","MX-121",25,"Iqtisodiyot nazariyasi","ma'ruza","2-qavat zal",80]
["k.oʻqit. Norkobilov N.","Seshanba","13:00-14:20","Tur-21","Tur-121",28,"Iqtisodiyot nazariyasi","ma'ruza","2-qavat zal",80]
["k.oʻqit. Norkobilov N.","Seshanba","13:00-14:20","Tur-21","Tur-221",16,"Iqtisodiyot nazariyasi","ma'ruza","2-qavat zal",80]
["k.oʻqit. Norkobilov N.","Chorshanba","14:30-15:50","Tur-21","Tur-121",28,"Iqtisodiyot nazariyasi","amaliy",217,35]
["k.oʻqit. Norkobilov N.","Chorshanba","16:00-17:20","Tur-21","Tur-221",16,"Iqtisodiyot nazariyasi","amaliy",217,35]
["k.oʻqit. Norkobilov N.","Payshanba","14:30-15:50","MX-21","MX-121",25,"Iqtisodiyot nazariyasi","amaliy",323,35]
["oʻqit. Abdurahimov S.","Seshanba","13:00-14:20","MX-19","MX-119",32,"Mexmonxona xoʻjaligi marketingi","ma'ruza",216,35]
["oʻqit. Abdurahimov S.","Chorshanba","16:00-17:20","MX-19","MX-119",32,"Mexmonxona xoʻjaligi marketingi","amaliy",216,35]
["oʻqit. Abdurahimov S.","Payshanba","13:00-14:20","MX-19","MX-119",32,"Mexmonxona xoʻjaligi marketingi","ma'ruza",216,35]
["oʻqit. Abdurahimov S.","Payshanba","13:00-14:20","MX-19","MX-119",32,"Mexmonxona xoʻjaligi marketingi","amaliy",216,35]
["oʻqit. Abdurahimov S.","Seshanba","16:00-17:20","Tur-19","Tur-119",31,"Turizm marketingi","ma'ruza",313,80]
["oʻqit. Abdurahimov S.","Seshanba","16:00-17:20","Tur-19","Tur-219",31,"Turizm marketingi","ma'ruza",313,80]
["oʻqit. Abdurahimov S.","Chorshanba","13:00-14:20","Tur-19","Tur-119",31,"Turizm marketingi","amaliy",211,35]
["oʻqit. Abdurahimov S.","Chorshanba","14:30-15:50","Tur-19","Tur-219",31,"Turizm marketingi","amaliy",215,35]
["oʻqit. Abdurahimov S.","Payshanba","14:30-15:50","Tur-19","Tur-119",31,"Turizm marketingi","ma'ruza",211,35]
["oʻqit. Abdurahimov S.","Payshanba","16:00-17:20","Tur-19","Tur-219",31,"Turizm marketingi","ma'ruza",215,35]
["oʻqit. Poʻlatova S.","Payshanba","16:00-17:20","Tur-19","Tur-219",31,"Turizm menejmenti","amaliy",215,35]
["oʻqit. Poʻlatova S.","Payshanba","14:30-15:50","Tur-19","Tur-119",31,"Turizm menejmenti","amaliy",211,35]
["oʻqit. Qayumov A.","Dushanba","08:00-09:20","Tur-20","Tur-120",27,"Xalqaro turizm: nazariya va amaliyot","ma'ruza",313,80]
["oʻqit. Qayumov A.","Dushanba","08:00-09:20","Tur-20","Tur-220",26,"Xalqaro turizm: nazariya va amaliyot","ma'ruza",313,80]
["oʻqit. Qayumov A.","Dushanba","08:00-09:20","Tur-20","Tur-320",13,"Xalqaro turizm: nazariya va amaliyot","ma'ruza",313,80]
["oʻqit. Qayumov A.","Juma","08:00-09:20","Tur-20","Tur-120",27,"Xalqaro turizm: nazariya va amaliyot","amaliy",311,35]
["oʻqit. Qayumov A.","Juma","09:30-10:50","Tur-20","Tur-220",26,"Xalqaro turizm: nazariya va amaliyot","amaliy",315,35]
["oʻqit. Qayumov A.","Juma","11:00-12:51","Tur-20","Tur-320",13,"Xalqaro turizm: nazariya va amaliyot","amaliy",412,35]
["oʻqit. Qayumov A.","Chorshanba","08:00-09:20","MX-20","MX-120",21,"Xalqaro turizm: nazariya va amaliyot","ma'ruza",110,50]
["oʻqit. Qayumov A.","Chorshanba","08:00-09:20","MX-20","MX-220",14,"Xalqaro turizm: nazariya va amaliyot","ma'ruza",110,50]
["oʻqit. Qayumov A.","Seshanba","08:00-09:21","MX-20","MX-120",21,"Xalqaro turizm: nazariya va amaliyot","amaliy",318,35]
["oʻqit. Qayumov A.","Seshanba","11:00-12:50","MX-20","MX-220",14,"Xalqaro turizm: nazariya va amaliyot","amaliy",319,35]
["oʻqit. Qayumov A.","Dushanba","09:30-10:50","MX-20","MX-220",14,"Mehmonxona xoʻjaligida xavfsizlik xizmati","ma'ruza",110,50]
["oʻqit. Qayumov A.","Dushanba","09:30-10:50","MX-20","MX-120",21,"Mehmonxona xoʻjaligida xavfsizlik xizmati","ma'ruza",110,50]
["oʻqit. Qayumov A.","Chorshanba","09:30-10:50","MX-20","MX-120",21,"Mehmonxona xoʻjaligida xavfsizlik xizmati","amaliy",318,35]
["oʻqit. Qayumov A.","Chorshanba","11:00-12:50","MX-20","MX-220",14,"Mehmonxona xoʻjaligida xavfsizlik xizmati","amaliy",319,35]
["oʻqit. Joʻrayev H.","Dushanba","13:00-14:20","Tur-19","Tur-119",31,"Turizmda xaritalashtirish va turistik marshrutlarni ishlab chiqish","ma'ruza",409,100]
["oʻqit. Joʻrayev H.","Dushanba","13:00-14:20","Tur-19","Tur-219",31,"Turizmda xaritalashtirish va turistik marshrutlarni ishlab chiqish","ma'ruza",409,100]
["oʻqit. Joʻrayev H.","Dushanba","14:30-15:50","Tur-19","Tur-119",31,"Turizmda loyihalashtirish va prognozlashtirish","ma'ruza",409,100]
["oʻqit. Joʻrayev H.","Dushanba","14:30-15:50","Tur-19","Tur-219",31,"Turizmda loyihalashtirish va prognozlashtirish","ma'ruza",409,100]
["oʻqit. Joʻrayev H.","Seshanba","14:30-15:50","Tur-19","Tur-119",31,"Turizmda xaritalashtirish va turistik marshrutlarni ishlab chiqish","ma'ruza",313,80]
["oʻqit. Joʻrayev H.","Seshanba","14:30-15:50","Tur-19","Tur-219",31,"Turizmda xaritalashtirish va turistik marshrutlarni ishlab chiqish","ma'ruza",313,80]
["oʻqit. Joʻrayev H.","Chorshanba","13:00-14:20","Tur-19","Tur-219",31,"Turizmda xaritalashtirish va turistik marshrutlarni ishlab chiqish","amaliy",215,35]
["oʻqit. Joʻrayev H.","Chorshanba","14:30-15:50","Tur-19","Tur-119",31,"Turizmda xaritalashtirish va turistik marshrutlarni ishlab chiqish","amaliy",211,35]
["oʻqit. Joʻrayev H.","Payshanba","14:30-15:50","Tur-19","Tur-219",31,"Turizmda xaritalashtirish va turistik marshrutlarni ishlab chiqish","amaliy",215,35]
["oʻqit. Joʻrayev H.","Seshanba","13:00-14:20","Tur-19","Tur-119",31,"Turizmda loyihalashtirish va prognozlashtirish","amaliy",211,35]
["oʻqit. Joʻrayev H.","Dushanba","16:00-17:20","Tur-19","Tur-219",31,"Turizmda loyihalashtirish va prognozlashtirish","amaliy",215,35]
["oʻqit. Joʻrayev H.","Chorshanba","08:00-09:20","Tur-20","Tur-120",27,"Turizm va mehmonxona xizmatlari iqtisodiyoti","amaliy",311,35]
["oʻqit. Joʻrayev H.","Chorshanba","09:30-10:50","Tur-20","Tur-220",26,"Turizm va mehmonxona xizmatlari iqtisodiyoti","amaliy",315,35]
["oʻqit. Joʻrayev H.","Chorshanba","11:00-12:50","Tur-20","Tur-320",13,"Turizm va mehmonxona xizmatlari iqtisodiyoti","amaliy",412,35]
["oʻqit. Joʻrayev H.","Juma","08:00-09:20","Tur-20","Tur-220",26,"Turizm va mehmonxona xizmatlari iqtisodiyoti","amaliy",315,35]
["oʻqit. Joʻrayev H.","Payshanba","11:00-12:50","Tur-20","Tur-320",13,"Turizm va mehmonxona xizmatlari iqtisodiyoti","amaliy",412,35]
["oʻqit. Joʻrayev H.","Payshanba","09:30-10:50","Tur-20","Tur-120",27,"Turizm va mehmonxona xizmatlari iqtisodiyoti","amaliy",311,35]
["k.oʻqit. E.Xurramov","Seshanba","14:30-15:50","KM-19","KM-119",14,"Innovatsion menejment","ma'ruza",315,35]
["k.oʻqit. E.Xurramov","Seshanba","14:30-15:50","KM-19","KM-119",14,"Innovatsion menejment","amaliy",315,35]
["k.oʻqit. E.Xurramov","Payshanba","13:00-14:20","KM-19","KM-119",14,"Karyerani boshqarish","ma'ruza",315,35]
["k.oʻqit. E.Xurramov","Payshanba","13:00-14:20","KM-19","KM-119",14,"Karyerani boshqarish","amaliy",315,35]
["k.oʻqit. Ismatov Sh.","Seshanba","09:30-10:50","IRB-20","IRB-120",15,"Xalqaro ishlash andozasi","ma'ruza",215,35]
["k.oʻqit. Ismatov Sh.","Chorshanba","09:30-10:50","IRB-20","IRB-120",15,"Xalqaro ishlash andozasi","amaliy",215,35]
["oʻqit. Poʻlatova S.","Seshanba","11:00-12:50","Tur-22","Tur-122",25,"Mehmondorchilik va turizm tarixi","ma'ruza",111,35]
["oʻqit. Poʻlatova S.","Seshanba","11:00-12:50","MX-22","MX-122",25,"Mehmondorchilik va turizm tarixi","ma'ruza",111,35]
["oʻqit. Poʻlatova S.","Chorshanba","11:00-12:50","Tur-22","Tur-122",25,"Mehmondorchilik va turizm tarixi","amaliy",111,35]
["oʻqit. Poʻlatova S.","Dushanba","11:00-12:50","MX-22","MX-122",25,"Mehmondorchilik va turizm tarixi","amaliy",111,35]
["oʻqit. Poʻlatova S.","Dushanba","14:30-15:50","MX-21","MX-121",25,"Turizm va mehmonxona xoʻjaligi menejmenti","ma'ruza","2-qavat zal",80]
["oʻqit. Poʻlatova S.","Dushanba","14:30-15:50","Tur-21","Tur-121",28,"Turizm va mehmonxona xoʻjaligi menejmenti","ma'ruza","2-qavat zal",80]
["oʻqit. Poʻlatova S.","Dushanba","14:30-15:50","Tur-21","Tur-221",16,"Turizm va mehmonxona xoʻjaligi menejmenti","ma'ruza","2-qavat zal",80]
["oʻqit. Poʻlatova S.","Payshanba","13:00-14:20","MX-21","MX-121",25,"Turizm va mehmonxona xoʻjaligi menejmenti","amaliy",323,35]
["oʻqit. Poʻlatova S.","Seshanba","14:30-15:50","Tur-21","Tur-121",28,"Turizm va mehmonxona xoʻjaligi menejmenti","amaliy",217,35]
["oʻqit. Poʻlatova S.","Seshanba","16:00-17:20","Tur-21","Tur-221",16,"Turizm va mehmonxona xoʻjaligi menejmenti","amaliy",220,35]
["oʻqit. Poʻlatova S.","Chorshanba","16:00-17:20","Tur-19","Tur-119",31,"Turizm menejmenti","ma'ruza",313,80]
["oʻqit. Poʻlatova S.","Chorshanba","16:00-17:20","Tur-19","Tur-219",31,"Turizm menejmenti","ma'ruza",313,80]
["oʻqit. Poʻlatova S.","Seshanba","13:00-14:20","Tur-19","Tur-219",31,"Turizm menejmenti","amaliy",215,35]
["oʻqit. Joʻrayev H.","Payshanba","16:00-17:20","Tur-19","Tur-119",31,"Turizmda xaritalashtirish va turistik marshrutlarni ishlab chiqish","amaliy",211,35]
["oʻqit. Poʻlatova S.","Payshanba","13:00-14:20","Tur-19","Tur-119",31,"Turizm menejmenti","amaliy",211,35]
["oʻqit. Hamzayeva D.","Juma","14:30-15:50","Tur-19","Tur-119",31,"Sport sogʻlolashtirish turizmi","ma'ruza",414,100]
["oʻqit. Hamzayeva D.","Juma","14:30-15:50","Tur-19","Tur-219",31,"Sport sogʻlolashtirish turizmi","ma'ruza",414,100]
["oʻqit. Hamzayeva D.","Dushanba","16:00-17:20","Tur-19","Tur-119",31,"Sport sogʻlolashtirish turizmi","amaliy",211,35]
["oʻqit. Hamzayeva D.","Payshanba","13:00-14:20","Tur-19","Tur-219",31,"Sport sogʻlolashtirish turizmi","amaliy",215,35]
["oʻqit. Hamzayeva D.","Payshanba","14:30-15:50","MX-19","MX-119",32,"Sanatoriya va kurort ishi","amaliy",216,35]
["oʻqit. Hamzayeva D.","Dushanba","14:30-15:50","MX-19","MX-119",32,"Sanatoriya va kurort ishi","ma'ruza",216,35]
["PhD. Buranova L.","Dushanba","16:00-17:20","KM-19","KM-119",14,"Personal auditi va nazorati","ma'ruza",315,35]
["PhD. Buranova L.","Dushanba","14:30-15:50","KM-19","KM-119",14,"Personal auditi va nazorati","amaliy",315,35]
["PhD. Buranova L.","Dushanba","09:30-10:50","IRB-20","IRB-120",15,"Moliyaviy va iqtisodiy maʼlumotlarni tahlil qilish","ma'ruza",215,35]
["PhD. Buranova L.","Dushanba","11:00-12:50","IRB-20","IRB-120",15,"Moliyaviy va iqtisodiy maʼlumotlarni tahlil qilish","amaliy",215,35]
["oʻqit. Ortiqov Sh.","Chorshanba","13:00-14:20","I-19","I-119",25,"Global iqtisodiy rivojlanish","ma'ruza",313,80]
["oʻqit. Ortiqov Sh.","Chorshanba","13:00-14:20","I-19","I-219",27,"Global iqtisodiy rivojlanish","ma'ruza",313,80]
["oʻqit. Ortiqov Sh.","Payshanba","13:00-14:20","I-19","I-219",27,"Global iqtisodiy rivojlanish","ma'ruza",311,35]
["oʻqit. Ortiqov Sh.","Payshanba","14:30-15:50","I-19","I-119",25,"Global iqtisodiy rivojlanish","ma'ruza",411,35]
["oʻqit. Ortiqov Sh.","Seshanba","08:00-09:20","I-22","I-122",25,"Biznes Intellekt                            ","ma'ruza","2-qavat zal",80]
["oʻqit. Ortiqov Sh.","Seshanba","08:00-09:20","I-22","I-222",25,"Biznes Intellekt                            ","ma'ruza","2-qavat zal",80]
["oʻqit. Ortiqov Sh.","Chorshanba","08:00-09:20","I-22","I-122",25,"Biznes Intellekt                            ","amaliy",112,50]
["oʻqit. Ortiqov Sh.","Chorshanba","09:30-10:50","I-22","I-222",25,"Biznes Intellekt                            ","amaliy",111,35]
["oʻqit. Nurmatov N.","Seshanba","13:00-14:20","I-19","I-119",25,"Korxona iqtisodiyoti","ma'ruza",313,80]
["oʻqit. Nurmatov N.","Seshanba","13:00-14:20","I-19","I-219",27,"Korxona iqtisodiyoti","ma'ruza",313,80]
["oʻqit. Nurmatov N.","Seshanba","13:00-14:20","I-19","I-119",25,"Korxona iqtisodiyoti","amaliy",411,35]
["oʻqit. Nurmatov N.","Chorshanba","14:30-15:50","I-19","I-219",27,"Korxona iqtisodiyoti","amaliy",311,35]
["o'qit. Ximoydinov A.","Seshanba","09:30-10:50","I-22","I-122",25,"Rus tili","amaliy",111,35]
["o'qit. Ximoydinov A.","Seshanba","11:00-12:50","I-22","I-222",25,"Rus tili","amaliy",112,50]
["o'qit. Usmanova G.","Seshanba","09:30-10:50","I-22","I-122",25,"Rus tili","amaliy",415,23]
["o'qit. Usmanova G.","Seshanba","11:00-12:50","I-22","I-222",25,"Rus tili","amaliy",413,35]
["o'qit. Ximoydinov A.","Payshanba","09:30-10:50","IRB-22","IRB-122",25,"Rus tili","amaliy",211,35]
["o'qit. Usmanova G.","Payshanba","09:30-10:50","IRB-22","IRB-122",25,"Rus tili","amaliy",214,30]
["o'qit. Ximoydinov A.","Dushanba","09:30-10:50","Tur-22","Tur-122",25,"Rus tili","amaliy",220,35]
["o'qit. Usmanova G.","Dushanba","09:30-10:50","Tur-22","Tur-122",25,"Rus tili","amaliy",217,35]
["o'qit. Ximoydinov A.","Payshanba","11:00-12:50","MX-22","MX-122",25,"Rus tili","amaliy",220,35]
["o'qit. Usmanova G.","Payshanba","11:00-12:50","MX-22","MX-122",25,"Rus tili","amaliy",217,35]
["DcS. Otamurodov Sh.","Seshanba","14:30-15:50","I-19","I-119",25,"Tashqi iqtisodiy faoliyat asoslari","ma'ruza",414,100]
["DcS. Otamurodov Sh.","Seshanba","14:30-15:50","I-19","I-219",27,"Tashqi iqtisodiy faoliyat asoslari","ma'ruza",414,100]
["DcS. Otamurodov Sh.","Seshanba","16:00-17:20","I-19","I-119",25,"Tashqi iqtisodiy faoliyat asoslari","amaliy",411,35]
["DcS. Otamurodov Sh.","Seshanba","14:30-15:50","I-19","I-219",27,"Tashqi iqtisodiy faoliyat asoslari","amaliy",311,35]
["oʻqit. Ravzatov J.","Seshanba","13:00-14:20","I-21","I-121",25,"Raqamli iqtisodiyot","ma'ruza",414,100]
["oʻqit. Ravzatov J.","Seshanba","13:00-14:20","I-21","I-221",25,"Raqamli iqtisodiyot","ma'ruza",414,100]
["oʻqit. Ravzatov J.","Seshanba","13:00-14:20","I-21","I-321",12,"Raqamli iqtisodiyot","ma'ruza",414,100]
["oʻqit. Ravzatov J.","Chorshanba","13:00-14:20","I-21","I-121",25,"Raqamli iqtisodiyot","amaliy",318,35]
["oʻqit. Ravzatov J.","Chorshanba","14:30-15:50","I-21","I-221",25,"Raqamli iqtisodiyot","amaliy",319,35]
["oʻqit. Ravzatov J.","Chorshanba","16:00-17:20","I-21","I-321",12,"Raqamli iqtisodiyot","amaliy",323,35]
["oʻqit. Ravzatov J.","Dushanba","14:30-15:50","I-21","I-121",25,"Mikroiqtisodiyot","ma'ruza",414,100]
["oʻqit. Ravzatov J.","Dushanba","14:30-15:50","I-21","I-221",25,"Mikroiqtisodiyot","ma'ruza",414,100]
["oʻqit. Ravzatov J.","Dushanba","14:30-15:50","I-21","I-321",12,"Mikroiqtisodiyot","ma'ruza",414,100]
["oʻqit. Ravzatov J.","Dushanba","14:30-15:50","IRB-21","IRB-121",23,"Mikroiqtisodiyot","ma'ruza",414,100]
["oʻqit. Ravzatov J.","Seshanba","14:30-15:50","I-21","I-121",25,"Mikroiqtisodiyot","amaliy",318,35]
["oʻqit. Ravzatov J.","Seshanba","16:00-17:20","I-21","I-221",25,"Mikroiqtisodiyot","amaliy",319,35]
["oʻqit. Ravzatov J.","Payshanba","16:00-17:20","I-21","I-321",12,"Mikroiqtisodiyot","amaliy",323,35]
["oʻqit. Ravzatov J.","Payshanba","14:30-15:50","IRB-21","IRB-121",23,"Mikroiqtisodiyot","amaliy",320,35]
["k.oʻqit. Bobomurodov I.","Dushanba","13:00-14:20","I-21","I-121",25,"Statistika","ma'ruza",313,80]
["k.oʻqit. Bobomurodov I.","Dushanba","13:00-14:20","I-21","I-221",25,"Statistika","ma'ruza",313,80]
["k.oʻqit. Bobomurodov I.","Dushanba","13:00-14:20","I-21","I-321",12,"Statistika","ma'ruza",313,80]
["k.oʻqit. Bobomurodov I.","Chorshanba","13:00-14:20","I-21","I-321",12,"Statistika","amaliy",323,35]
["k.oʻqit. Bobomurodov I.","Chorshanba","14:30-15:50","I-21","I-121",25,"Statistika","amaliy",318,35]
["k.oʻqit. Bobomurodov I.","Chorshanba","16:00-17:20","I-21","I-221",25,"Statistika","amaliy",319,35]
["k.oʻqit. Bobomurodov I.","Payshanba","13:00-14:20","I-21","I-121",25,"Ekonometrika kirish","ma'ruza",313,80]
["k.oʻqit. Bobomurodov I.","Payshanba","13:00-14:20","I-21","I-221",25,"Ekonometrika kirish","ma'ruza",313,80]
["k.oʻqit. Bobomurodov I.","Payshanba","13:00-14:20","I-21","I-321",12,"Ekonometrika kirish","ma'ruza",313,80]
["k.oʻqit. Bobomurodov I.","Seshanba","13:00-14:20","MMT-21","MMT-121",28,"Statistika","ma'ruza","3-qavat zal",100]
["k.oʻqit. Bobomurodov I.","Seshanba","13:00-14:20","MMT-21","MMT-221",30,"Statistika","ma'ruza","3-qavat zal",100]
["k.oʻqit. Bobomurodov I.","Payshanba","14:30-15:50","MMT-21","MMT-121",28,"Statistika","amaliy",410,35]
["k.oʻqit. Bobomurodov I.","Payshanba","16:00-17:20","MMT-21","MMT-221",30,"Statistika","amaliy",411,35]
["k.oʻqit. Bobomurodov I.","Juma","14:30-15:50","KM-19","KM-119",14,"Xodimlarning innovatsion faolligini boshqarish","ma'ruza",315,35]
["k.oʻqit. Bobomurodov I.","Juma","14:30-15:50","KM-19","KM-119",14,"Xodimlarning innovatsion faolligini boshqarish","amaliy",315,35]
["k.oʻqit. Bobomurodov I.","Chorshanba","08:00-09:20","I-20","I-120",31,"Dinamik makroiqtisodiyot","ma'ruza","3-qavat zal",100]
["k.oʻqit. Bobomurodov I.","Chorshanba","08:00-09:20","I-20","I-220",31,"Dinamik makroiqtisodiyot","ma'ruza","3-qavat zal",100]
["k.oʻqit. Bobomurodov I.","Juma","11:00-12:50","I-20","I-320",31,"Dinamik makroiqtisodiyot","ma'ruza","2-qavat zal",80]
["k.oʻqit. Bobomurodov I.","Juma","11:00-12:50","I-20","I-420",34,"Dinamik makroiqtisodiyot","ma'ruza","2-qavat zal",80]
["oʻqit. Amonov M.","Juma","16:00-17:20","KM-19","KM-119",14,"Strategik menejment","ma'ruza",315,35]
["oʻqit. Amonov M.","Juma","16:00-17:20","KM-19","KM-119",14,"Strategik menejment","amaliy",315,35]
["oʻqit. Usmonov Ch.","Seshanba","14:30-15:50","Tur-21","Tur-221",16,"Turizm nazariyasi va amaliyoti","amaliy",220,35]
["oʻqit. Usmonov Ch.","Seshanba","16:00-17:20","Tur-21","Tur-121",28,"Turizm nazariyasi va amaliyoti","amaliy",217,35]
["oʻqit. Usmonov Ch.","Chorshanba","14:30-15:50","MX-21","MX-121",25,"Turizm: nazariya va amaliyot","amaliy",323,35]
["oʻqit. Usmonov Ch.","Payshanba","13:00-14:20","MX-21","MX-121",25,"Turizm: nazariya va amaliyot","amaliy",323,35]
["oʻqit. Usmonov Ch.","Payshanba","14:30-15:50","Tur-21","Tur-121",28,"Turizm: nazariya va amaliyot","amaliy",217,35]
["oʻqit. Usmonov Ch.","Payshanba","16:00-17:20","Tur-21","Tur-221",16,"Turizm: nazariya va amaliyot","amaliy",220,35]
["oʻqit. Usmonov Ch.","Seshanba","09:30-10:50","Tur-20","Tur-120",27,"Turizm va mehmonxona xizmatlari iqtisodiyoti","ma'ruza",313,80]
["oʻqit. Usmonov Ch.","Seshanba","09:30-10:50","Tur-20","Tur-220",26,"Turizm va mehmonxona xizmatlari iqtisodiyoti","ma'ruza",313,80]
["oʻqit. Usmonov Ch.","Seshanba","09:30-10:50","Tur-20","Tur-320",13,"Turizm va mehmonxona xizmatlari iqtisodiyoti","ma'ruza",313,80]
["oʻqit. Usmonov Ch.","Dushanba","09:30-10:50","Tur-20","Tur-120",27,"Turizm va mehmonxona xizmatlari iqtisodiyoti","ma'ruza",313,80]
["oʻqit. Usmonov Ch.","Dushanba","09:30-10:50","Tur-20","Tur-220",26,"Turizm va mehmonxona xizmatlari iqtisodiyoti","ma'ruza",313,80]
["oʻqit. Usmonov Ch.","Dushanba","09:30-10:50","Tur-20","Tur-320",13,"Turizm va mehmonxona xizmatlari iqtisodiyoti","ma'ruza",313,80]
["oʻqit. Usmonov Ch.","Dushanba","11:00-12:50","MX-20","MX-120",21,"Turizm va mehmonxona xizmatlari iqtisodiyoti","ma'ruza",110,50]
["oʻqit. Usmonov Ch.","Dushanba","11:00-12:50","MX-20","MX-220",14,"Turizm va mehmonxona xizmatlari iqtisodiyoti","ma'ruza",110,50]
["oʻqit. Usmonov Ch.","Payshanba","08:00-09:20","MX-20","MX-120",21,"Turizm va mehmonxona xizmatlari iqtisodiyoti","ma'ruza",110,50]
["oʻqit. Usmonov Ch.","Payshanba","08:00-09:20","MX-20","MX-220",14,"Turizm va mehmonxona xizmatlari iqtisodiyoti","ma'ruza",110,50]
["oʻqit. Usmonov Ch.","Payshanba","09:30-10:50","MX-20","MX-220",14,"Turizm va mehmonxona xizmatlari iqtisodiyoti","amaliy",319,35]
["oʻqit. Usmonov Ch.","Payshanba","11:00-12:50","MX-20","MX-120",21,"Turizm va mehmonxona xizmatlari iqtisodiyoti","amaliy",318,35]
["oʻqit. Usmonov Ch.","Chorshanba","09:30-10:50","MX-20","MX-220",14,"Turizm va mehmonxona xizmatlari iqtisodiyoti","amaliy",319,35]
["oʻqit. Usmonov Ch.","Chorshanba","11:00-12:50","MX-20","MX-120",21,"Turizm va mehmonxona xizmatlari iqtisodiyoti","amaliy",318,35]
["k.oʻqit. Shodiyev A.","Seshanba","08:00-09:20","Bux-20","Bux-220",31,"Iqtisodiy tahlil","ma'ruza",313,80]
["k.oʻqit. Shodiyev A.","Seshanba","08:00-09:20","Bux-20","Bux-120",16,"Iqtisodiy tahlil","ma'ruza",313,80]
["k.oʻqit. Shodiyev A.","Chorshanba","08:00-09:20","MMT-20","MMT-120",32,"Iqtisodiy tahlil","ma'ruza","3-qavat zal",100]
["k.oʻqit. Shodiyev A.","Chorshanba","08:00-09:20","MMT-20","MMT-220",31,"Iqtisodiy tahlil","ma'ruza","3-qavat zal",100]
["k.oʻqit. Shodiyev A.","Chorshanba","08:00-09:20","MMT-20","MMT-320",30,"Iqtisodiy tahlil","ma'ruza","3-qavat zal",100]
["k.oʻqit. Shodiyev A.","Seshanba","11:00-12:50","MMT-20","MMT-220",31,"Iqtisodiy tahlil","amaliy",216,35]
["k.oʻqit. Shodiyev A.","Chorshanba","09:30-10:50","MMT-20","MMT-320",23,"Iqtisodiy tahlil","amaliy",316,35]
["k.oʻqit. Shodiyev A.","Chorshanba","11:00-12:50","MMT-20","MMT-120",32,"Iqtisodiy tahlil","amaliy",220,35]
["k.oʻqit. Shodiyev A.","Payshanba","09:30-10:50","Bux-20","Bux-120",16,"Iqtisodiy tahlil","amaliy",217,35]
["k.oʻqit. Shodiyev A.","Payshanba","11:00-12:50","Bux-20","Bux-220",31,"Iqtisodiy tahlil","amaliy",112,50]
["PhD. Xoʻjageldiyev Ch.","Dushanba","09:30-10:50","MMT-20","MMT-120",32,"Manejment.Marketing","ma'ruza",414,100]
["PhD. Xoʻjageldiyev Ch.","Dushanba","09:30-10:50","MMT-20","MMT-220",31,"Manejment.Marketing","ma'ruza",414,100]
["PhD. Xoʻjageldiyev Ch.","Dushanba","09:30-10:50","MMT-20","MMT-320",23,"Manejment.Marketing","ma'ruza",414,100]
["PhD. Xoʻjageldiyev Ch.","Dushanba","11:00-12:50","MMT-20","MMT-120",32,"Manejment.Marketing","amaliy",220,35]
["PhD. Xoʻjageldiyev Ch.","Seshanba","11:00-12:50","MMT-20","MMT-320",23,"Iqtisodiy tahlil","amaliy",316,35]
["PhD. Xoʻjageldiyev Ch.","Payshanba","09:30-10:50","MMT-20","MMT-220",31,"Iqtisodiy tahlil","amaliy",216,35]
["PhD. Xoʻjageldiyev Ch.","Chorshanba","16:00-17:20","I-19","I-119",28,"Iqtisodiy rivojlanish strategiyasi","ma'ruza","3-qavat zal",100]
["PhD. Xoʻjageldiyev Ch.","Chorshanba","16:00-17:20","I-19","I-219",30,"Iqtisodiy rivojlanish strategiyasi","ma'ruza","3-qavat zal",100]
["PhD. Xoʻjageldiyev Ch.","Seshanba","16:00-17:20","I-19","I-219",30,"Iqtisodiy rivojlanish strategiyasi","amaliy",311,35]
["PhD. Xoʻjageldiyev Ch.","Chorshanba","14:30-15:50","I-19","I-119",28,"Iqtisodiy rivojlanish strategiyasi","amaliy",411,35]
["oʻqit. Esankulov A.","Dushanba","08:00-09:20","I-20","I-320",31,"Inson resurslarini boshqarish ","ma'ruza","2-qavat zal",80]
["oʻqit. Esankulov A.","Dushanba","08:00-09:20","I-20","I-420",32,"Inson resurslarini boshqarish ","ma'ruza","2-qavat zal",80]
["oʻqit. Esankulov A.","Dushanba","09:30-10:50","I-20","I-120",13,"Inson resurslarini boshqarish ","ma'ruza","3-qavat zal",100]
["oʻqit. Esankulov A.","Dushanba","09:30-10:50","I-20","I-220",30,"Inson resurslarini boshqarish ","ma'ruza","3-qavat zal",100]
["oʻqit. Esankulov A.","Chorshanba","09:30-10:50","I-20","I-220",30,"Inson resurslarini boshqarish ","amaliy",320,35]
["oʻqit. Esankulov A.","Chorshanba","11:00-12:50","I-20","I-120",13,"Inson resurslarini boshqarish ","amaliy",211,35]
["oʻqit. Esankulov A.","Payshanba","08:00-09:20","I-20","I-420",32,"Inson resurslarini boshqarish ","amaliy",411,35]
["oʻqit. Esankulov A.","Payshanba","11:00-12:50","I-20","I-320",31,"Inson resurslarini boshqarish ","amaliy",323,35]
["oʻqit. Esankulov A.","Seshanba","08:00-09:20","IRB-20","IRB-120",34,"Taym menejment","ma'ruza",215,35]
["oʻqit. Esankulov A.","Payshanba","09:30-10:50","IRB-20","IRB-120",34,"Yetakchilikni rivojlantirish","ma'ruza",215,35]
["oʻqit. Esankulov A.","Juma","08:00-09:20","IRB-20","IRB-120",34,"Taym menejment","amaliy",215,35]
["oʻqit. Esankulov A.","Juma","09:30-10:50","IRB-20","IRB-120",34,"Yetakchilikni rivojlantirish","amaliy",215,35]
["o'qit. Yo'ldoshev I.","Dushanba","08:00-09:20","Tur-22","Tur-122",25,"Oʻzbekistonning eng yangi tarixi","ma'ruza","2-qavat zal",35]
["o'qit. Yo'ldoshev I.","Dushanba","08:00-09:20","MX-22","MX-122",25,"Oʻzbekistonning eng yangi tarixi","ma'ruza","2-qavat zal",35]
["o'qit. Yo'ldoshev I.","Dushanba","09:30-10:50","MMT-22","MMT-122",28,"Oʻzbekistonning eng yangi tarixi","ma'ruza",409,100]
["o'qit. Yo'ldoshev I.","Dushanba","09:30-10:50","MMT-22","MMT-222",30,"Oʻzbekistonning eng yangi tarixi","ma'ruza",409,100]
["o'qit. Yo'ldoshev I.","Dushanba","09:30-10:50","Bux-22","Bux-122",25,"Oʻzbekistonning eng yangi tarixi","ma'ruza",409,100]
["o'qit. Yo'ldoshev I.","Dushanba","09:30-10:50","Bux-22","Bux-222",25,"Oʻzbekistonning eng yangi tarixi","ma'ruza",409,100]
["o'qit. Yo'ldoshev I.","Juma","08:00-09:20","Bux-22","Bux-222",25,"Oʻzbekistonning eng yangi tarixi","amaliy",411,35]
["o'qit. Yo'ldoshev I.","Juma","09:30-10:50","Bux-22","Bux-122",25,"Oʻzbekistonning eng yangi tarixi","amaliy",410,35]
["o'qit. Yo'ldoshev I.","Payshanba","08:00-09:20","MMT-22","MMT-222",25,"Oʻzbekistonning eng yangi tarixi","amaliy",413,35]
["o'qit. Yo'ldoshev I.","Payshanba","11:00-12:50","MMT-22","MMT-122",25,"Oʻzbekistonning eng yangi tarixi","amaliy",412,35]
["o'qit. Yo'ldoshev I.","Chorshanba","11:00-12:50","MX-22","MX-122",25,"Oʻzbekistonning eng yangi tarixi","amaliy",112,50]
["o'qit. Yo'ldoshev I.","Dushanba","11:00-12:50","Tur-22","Tur-122",25,"Oʻzbekistonning eng yangi tarixi","amaliy",112,50]
["oʻqit. Shaymatova N.","Dushanba","11:00-12:50","Tur-20","Tur-120",23,"Turizm va mehmonxona xoʻjaligida buxgalteriya hisobi va audit","ma'ruza",313,80]
["oʻqit. Shaymatova N.","Dushanba","11:00-12:50","Tur-20","Tur-220",27,"Turizm va mehmonxona xoʻjaligida buxgalteriya hisobi va audit","ma'ruza",313,80]
["oʻqit. Shaymatova N.","Dushanba","11:00-12:50","Tur-20","Tur-320",26,"Turizm va mehmonxona xoʻjaligida buxgalteriya hisobi va audit","ma'ruza",313,80]
["oʻqit. Shaymatova N.","Juma","08:00-09:20","Tur-20","Tur-320",26,"Turizm va mehmonxona xoʻjaligida buxgalteriya hisobi va audit","amaliy",415,35]
["oʻqit. Shaymatova N.","Juma","09:30-10:50","Tur-20","Tur-120",23,"Turizm va mehmonxona xoʻjaligida buxgalteriya hisobi va audit","amaliy",311,35]
["oʻqit. Shaymatova N.","Juma","11:00-12:50","Tur-20","Tur-220",27,"Turizm va mehmonxona xoʻjaligida buxgalteriya hisobi va audit","amaliy",315,35]
["oʻqit. Shaymatova N.","Payshanba","08:00-09:20","Tur-20","Tur-120",23,"Turizm va mehmonxona xoʻjaligida buxgalteriya hisobi va audit","ma'ruza",409,100]
["oʻqit. Shaymatova N.","Payshanba","08:00-09:20","Tur-20","Tur-220",27,"Turizm va mehmonxona xoʻjaligida buxgalteriya hisobi va audit","ma'ruza",409,100]
["oʻqit. Shaymatova N.","Payshanba","08:00-09:20","Tur-20","Tur-320",26,"Turizm va mehmonxona xoʻjaligida buxgalteriya hisobi va audit","ma'ruza",409,100]
["oʻqit. Shaymatova N.","Chorshanba","08:00-09:20","Tur-20","Tur-320",26,"Turizm va mehmonxona xoʻjaligida buxgalteriya hisobi va audit","amaliy",415,23]
["oʻqit. Shaymatova N.","Chorshanba","09:30-10:50","Tur-20","Tur-120",23,"Turizm va mehmonxona xoʻjaligida buxgalteriya hisobi va audit","amaliy",311,35]
["oʻqit. Shaymatova N.","Chorshanba","11:00-12:50","Tur-20","Tur-220",27,"Turizm va mehmonxona xoʻjaligida buxgalteriya hisobi va audit","amaliy",315,35]
["oʻqit. Shaymatova N.","Seshanba","09:30-10:50","MX-20","MX-120",13,"Turizm va mehmonxona xoʻjaligida buxgalteriya hisobi va audit","ma'ruza","114-komp",50]
["oʻqit. Shaymatova N.","Seshanba","09:30-10:50","MX-20","MX-220",25,"Turizm va mehmonxona xoʻjaligida buxgalteriya hisobi va audit","ma'ruza","114-komp",50]
["oʻqit. Shaymatova N.","Dushanba","08:00-09:20","MX-20","MX-120",25,"Turizm va mehmonxona xoʻjaligida buxgalteriya hisobi va audit","ma'ruza","114-komp",50]
["oʻqit. Shaymatova N.","Dushanba","08:00-09:20","MX-20","MX-220",13,"Turizm va mehmonxona xoʻjaligida buxgalteriya hisobi va audit","ma'ruza","114-komp",50]
["oʻqit. Shaymatova N.","Payshanba","09:30-10:50","MX-20","MX-120",25,"Turizm va mehmonxona xoʻjaligida buxgalteriya hisobi va audit","amaliy",318,35]
["oʻqit. Shaymatova N.","Payshanba","11:00-12:50","MX-20","MX-220",13,"Turizm va mehmonxona xoʻjaligida buxgalteriya hisobi va audit","amaliy",319,35]
["o'qit. Ibragimova N.","Payshanba","08:00-09:20","Bux-22","Bux-122",25,"Rus tili","amaliy",215,35]
["o'qit. Kenjayeva M.","Payshanba","08:00-09:20","Bux-22","Bux-122",25,"Rus tili","amaliy",415,35]
["o'qit. Kenjayeva M.","Payshanba","09:30-10:50","Bux-22","Bux-222",25,"Rus tili","amaliy",411,35]
["o'qit. Ibragimova N.","Payshanba","09:30-10:50","Bux-22","Bux-222",25,"Rus tili","amaliy",412,35]
["oʻqit. Mamatqulov T.","Dushanba","16:00-17:20","I-21","I-121",28,"Atrof-muhit va tabiiy resurslar iqtisodiyoti","ma'ruza","3-qavat zal",100]
["oʻqit. Mamatqulov T.","Dushanba","16:00-17:20","I-21","I-221",30,"Atrof-muhit va tabiiy resurslar iqtisodiyoti","ma'ruza","3-qavat zal",100]
["oʻqit. Mamatqulov T.","Dushanba","16:00-17:20","I-21","I-321",30,"Atrof-muhit va tabiiy resurslar iqtisodiyoti","ma'ruza","3-qavat zal",100]
["oʻqit. Mamatqulov T.","Chorshanba","13:00-14:20","I-21","I-221",30,"Atrof-muhit va tabiiy resurslar iqtisodiyoti","amaliy",319,35]
["oʻqit. Mamatqulov T.","Chorshanba","14:30-15:50","I-21","I-321",28,"Atrof-muhit va tabiiy resurslar iqtisodiyoti","amaliy",323,35]
["oʻqit. Mamatqulov T.","Chorshanba","16:00-17:20","I-21","I-121",30,"Atrof-muhit va tabiiy resurslar iqtisodiyoti","amaliy",318,35]
["oʻqit. Mamatqulov T.","Dushanba","13:00-14:20","IRB-21","IRB-121",23,"Atrof-muhit va tabiiy resurslar iqtisodiyoti","ma'ruza",215,35]
["oʻqit. Mamatqulov T.","Payshanba","13:00-14:20","IRB-21","IRB-121",23,"Atrof-muhit va tabiiy resurslar iqtisodiyoti","amaliy",214,30]
["oʻqit. Mamatqulov T.","Seshanba","13:00-14:20","IRB-21","IRB-121",23,"Atrof-muhit va tabiiy resurslar iqtisodiyoti","ma'ruza",214,30]
["oʻqit. Mamatqulov T.","Seshanba","13:00-14:20","IRB-21","IRB-121",23,"Atrof-muhit va tabiiy resurslar iqtisodiyoti","amaliy",214,30]
["o'qit. Yusupov G.","Juma","13:00-14:20","I-19","M-119",25,"Audit","ma'ruza",110,50]
["o'qit. Yusupov G.","Juma","13:00-14:20","M-19","M-219",13,"Audit","ma'ruza",110,50]
["o'qit. Yusupov G.","Juma","14:30-15:50","Bux-19","Bux-119",30,"Audit","ma'ruza",111,50]
["o'qit. Yusupov G.","Juma","14:30-15:50","Bux-19","Bux-119",30,"Audit","amaliy",111,35]
["o'qit. Yusupov G.","Payshanba","13:00-14:20","M-19","M-119",26,"Audit","amaliy",110,50]
["o'qit. Yusupov G.","Payshanba","16:00-17:20","M-19","M-219",13,"Audit","amaliy",415,23]
["o'qit. Yusupov G.","Chorshanba","13:00-14:20","Bux-19","Bux-119",30,"Audit","ma'ruza",111,35]
["o'qit. Yusupov G.","Payshanba","14:30-15:50","Bux-19","Bux-119",30,"Audit","amaliy",111,35]
["o'qit. Yusupov G.","Chorshanba","14:30-15:50","Bux-19","Bux-119",30,"Ichki audit","ma'ruza",111,35]
["o'qit. Yusupov G.","Juma","16:00-17:20","Bux-19","Bux-119",30,"Ichki audit","amaliy",111,35]
["k.oʻqit. Shodiyev A.","Dushanba","14:30-15:50","MMT-21","MMT-121",27,"Iqtisodiy tahlil","ma'ruza","3-qavat zal",100]
["k.oʻqit. Shodiyev A.","Dushanba","14:30-15:50","MMT-21","MMT-221",31,"Iqtisodiy tahlil","ma'ruza","3-qavat zal",100]
["k.oʻqit. Shodiyev A.","Dushanba","16:00-17:20","Bux-21","Bux-121",26,"Iqtisodiy tahlil","ma'ruza",313,80]
["k.oʻqit. Shodiyev A.","Dushanba","16:00-17:20","Bux-21","Bux-221",29,"Iqtisodiy tahlil","ma'ruza",313,80]
["k.oʻqit. Shodiyev A.","Chorshanba","14:30-15:50","MMT-21","MMT-221",31,"Iqtisodiy tahlil","amaliy",412,35]
["k.oʻqit. Shodiyev A.","Chorshanba","16:00-17:20","MMT-21","MMT-121",27,"Iqtisodiy tahlil","amaliy",413,35]
["k.oʻqit. Shodiyev A.","Payshanba","14:30-15:50","Bux-21","Bux-121",26,"Iqtisodiy tahlil","amaliy",412,35]
["k.oʻqit. Shodiyev A.","Payshanba","16:00-17:20","Bux-21","Bux-221",29,"Iqtisodiy tahlil","amaliy",413,35]
["oʻqit. Panjiyeva N.","Seshanba","09:30-10:50","Tur-22","Tur-122",25,"Mehmondorchilik va turizm sohasiga kirish","ma'ruza","2-qavat zal",80]
["oʻqit. Panjiyeva N.","Seshanba","09:30-10:50","MX-22","MX-122",25,"Mehmondorchilik va turizm sohasiga kirish","ma'ruza","2-qavat zal",80]
["oʻqit. Panjiyeva N.","Payshanba","09:30-10:50","MX-22","MX-122",25,"Mehmondorchilik va turizm sohasiga kirish","amaliy",111,35]
["oʻqit. Panjiyeva N.","Payshanba","11:00-12:50","Tur-22","Tur-122",25,"Mehmondorchilik va turizm sohasiga kirish","amaliy",110,50]
["dots. Tursunov M.","Seshanba","08:00-09:20","Tur-22","Tur-122",25,"Falsafa","ma'ruza","3-qavat zal",100]
["dots. Tursunov M.","Seshanba","08:00-09:20","MX-22","MX-122",25,"Falsafa","ma'ruza","3-qavat zal",100]
["dots. Tursunov M.","Juma","08:00-09:20","MX-22","MX-122",25,"Falsafa","amaliy",111,35]
["dots. Tursunov M.","Juma","09:30-10:50","Tur-22","Tur-122",25,"Falsafa","amaliy",110,50]
["dots. Tursunov M.","Chorshanba","09:30-10:50","Bux-22","Bux-122",25,"Falsafa","ma'ruza","2-qavat zal",80]
["dots. Tursunov M.","Chorshanba","09:30-10:50","MMT-22","MMT-222",25,"Falsafa","ma'ruza","2-qavat zal",80]
["dots. Tursunov M.","Payshanba","08:00-09:20","Bux-22","Bux-222",25,"Falsafa","amaliy",412,35]
["dots. Tursunov M.","Payshanba","09:30-10:50","Bux-22","Bux-122",25,"Falsafa","amaliy",413,35]
["k.oʻqit. Turanov M.","Payshanba","13:00-14:20","Bux-19","Bux-119",30,"Banklarda buxgalteriya hisobi","ma'ruza",111,35]
["k.oʻqit. Turanov M.","Payshanba","13:00-14:20","Bux-19","Bux-119",30,"Banklarda buxgalteriya hisobi","amaliy",111,35]
["o'qit. Amonturdiyev O.","Chorshanba","09:30-10:50","Bux-22","Bux-222",25,"Jismoniy madaniyat va sport ","amaliy","Stadion",100]
["o'qit. Amonturdiyev O.","Chorshanba","11:00-12:50","Bux-22","Bux-122",25,"Jismoniy madaniyat va sport ","amaliy","Stadion",100]
["o'qit. Amonturdiyev O.","Juma","09:30-10:50","MMT-22","MMT-122",25,"Jismoniy madaniyat va sport ","amaliy","Stadion",100]
["o'qit. Amonturdiyev O.","Juma","08:00-09:20","MMT-22","MMT-222",25,"Jismoniy madaniyat va sport ","amaliy","Stadion",100]
["o'qit. Saatmurotov Sh.","Dushanba","08:00-09:20","Bux-22","Bux-122",25,"Iqtisodchilar uchun matematika","ma'ruza",414,100]
["o'qit. Saatmurotov Sh.","Dushanba","08:00-09:20","Bux-22","Bux-222",25,"Iqtisodchilar uchun matematika","ma'ruza",414,100]
["o'qit. Saatmurotov Sh.","Dushanba","08:00-09:20","MMT-22","MMT-122",25,"Iqtisodchilar uchun matematika","ma'ruza",414,100]
["o'qit. Saatmurotov Sh.","Dushanba","08:00-09:20","MMT-22","MMT-222",25,"Iqtisodchilar uchun matematika","ma'ruza",414,100]
["o'qit. Saatmurotov Sh.","Chorshanba","09:30-10:50","MMT-22","MMT-122",25,"Iqtisodchilar uchun matematika","amaliy",110,50]
["o'qit. Saatmurotov Sh.","Chorshanba","11:00-12:50","MMT-22","MMT-222",25,"Iqtisodchilar uchun matematika","amaliy",215,35]
["o'qit. Xuramov S.","Seshanba","09:30-10:50","MMT-22","MMT-122",25,"Iqtisodiyotda  Axborot  texnologiyalar","ma'ruza",409,100]
["o'qit. Xuramov S.","Seshanba","09:30-10:50","MMT-22","MMT-222",25,"Iqtisodiyotda  Axborot  texnologiyalar","ma'ruza",409,100]
["o'qit. Xuramov S.","Seshanba","11:00-12:50","Bux-22","Bux-122",25,"Iqtisodiyotda  informatsion kommunikatsion  texnologiyalar","ma'ruza",409,100]
["o'qit. Xuramov S.","Seshanba","11:00-12:50","Bux-22","Bux-222",25,"Iqtisodiyotda  informatsion kommunikatsion  texnologiyalar","ma'ruza",409,100]
["o'qit. Xuramov S.","Chorshanba","11:00-12:50","Bux-22","Bux-222",25,"Iqtisodiyotda  informatsion kommunikatsion  texnologiyalar","amaliy",217,35]
["o'qit. Xuramov S.","Juma","11:00-12:50","Bux-22","Bux-122",25,"Iqtisodiyotda  informatsion kommunikatsion  texnologiyalar","amaliy",217,35]
["o'qit. Xuramov S.","Juma","08:00-09:20","MMT-22","MMT-122",25,"Iqtisodiyotda  Axborot  texnologiyalar","amaliy",110,50]
["o'qit. Xuramov S.","Juma","09:30-10:50","MMT-22","MMT-222",25,"Iqtisodiyotda  Axborot  texnologiyalar","amaliy",211,35]
["o'qit. Xuramov S.","Payshanba","08:00-09:20","I-22","I-122",25,"Iqtisodiyotda axborot-kommunikatsion texnologiyalar va tizimlar","ma'ruza",409,100]
["o'qit. Xuramov S.","Payshanba","08:00-09:20","I-22","I-222",25,"Iqtisodiyotda axborot-kommunikatsion texnologiyalar va tizimlar","ma'ruza",409,100]
["o'qit. Xuramov S.","Payshanba","08:00-09:20","IRB-22","IRB-122",25,"Iqtisodiyotda axborot-kommunikatsion texnologiyalar va tizimlar","ma'ruza",409,100]
["o'qit. Xuramov S.","Chorshanba","08:00-09:20","I-22","I-222",25,"Iqtisodiyotda axborot-kommunikatsion texnologiyalar va tizimlar","amaliy",216,35]
["o'qit. Xuramov S.","Chorshanba","09:30-10:50","I-22","I-122",25,"Iqtisodiyotda axborot-kommunikatsion texnologiyalar va tizimlar","amaliy","2-qavat zal",80]
["o'qit. Xuramov S.","Dushanba","08:00-09:20","IRB-22","IRB-122",25,"Iqtisodiyotda axborot-kommunikatsion texnologiyalar va tizimlar","laboratoriya",311,35]
["o'qit. Amonturdiyev O.","Dushanba","09:30-10:50","MX-22","MX-122",25,"Jismoniy madaniyat va sport ","amaliy","Stadion",100]
["o'qit. Amonturdiyev O.","Payshanba","08:00-09:20","MX-22","MX-122",25,"Jismoniy madaniyat va sport ","amaliy","Stadion",100]
["o'qit. Amonturdiyev O.","Payshanba","09:30-10:50","Tur-22","Tur-122",25,"Jismoniy madaniyat va sport ","amaliy","Stadion",100]
["o'qit. Amonturdiyev O.","Juma","11:00-12:50","Tur-22","Tur-122",25,"Jismoniy madaniyat va sport ","amaliy","Stadion",100]
["o'qit. Saatmurotov Sh.","Dushanba","11:00-12:50","Bux-22","Bux-122",25,"Iqtisodchilar uchun matematika","amaliy",217,35]
["o'qit. Saatmurotov Sh.","Juma","11:00-12:50","Bux-22","Bux-222",25,"Iqtisodchilar uchun matematika","amaliy",214,30]
["PhD. Gadoyev S.","Payshanba","13:00-14:20","MMT-21","MMT-221",31,"Moliya","ma'ruza",409,100]
["PhD. Gadoyev S.","Payshanba","13:00-14:20","MMT-21","MMT-121",27,"Moliya","ma'ruza",409,100]
["o'qit. Choriyeva Ch.","Seshanba","13:00-14:20","KM-19","KM-119",14,"Oʻzbek tilining sohada qoʻllanilishi","ma'ruza",315,35]
["o'qit. Choriyeva Ch.","Seshanba","13:00-14:20","KM-19","KM-119",14,"Oʻzbek tilining sohada qoʻllanilishi","amaliy",315,35]
["o'qit. Choriyeva Ch.","Payshanba","14:30-15:50","M-19","M-119",26,"Oʻzbek tilining sohada qoʻllanilishi","ma'ruza",110,50]
["o'qit. Choriyeva Ch.","Payshanba","14:30-15:50","M-19","M-219",13,"Oʻzbek tilining sohada qoʻllanilishi","ma'ruza",110,50]
["o'qit. Choriyeva Ch.","Chorshanba","14:30-15:50","M-19","M-219",26,"Oʻzbek tilining sohada qoʻllanilishi","amaliy",110,50]
["o'qit. Choriyeva Ch.","Chorshanba","16:00-17:20","M-19","M-119",13,"Oʻzbek tilining sohada qoʻllanilishi","amaliy",415,23]
["oʻqit. Zokirova G.","Payshanba","08:00-09:20","Bux-20","Bux-120",26,"Sugʻurta ishi","ma'ruza","3-qavat zal",100]
["oʻqit. Zokirova G.","Payshanba","08:00-09:20","Bux-20","Bux-220",32,"Sugʻurta ishi","ma'ruza","3-qavat zal",100]
["oʻqit. Zokirova G.","Juma","08:00-09:20","Bux-20","Bux-120",26,"Sugʻurta ishi","amaliy",412,35]
["oʻqit. Zokirova G.","Juma","09:30-10:50","Bux-20","Bux-220",32,"Sugʻurta ishi","amaliy",112,50]
["oʻqit. Absamatov A.","Chorshanba","13:00-14:20","Bux-21","Bux-121",26,"Pul va banklar","ma'ruza","2-qavat zal",80]
["oʻqit. Absamatov A.","Chorshanba","13:00-14:20","Bux-21","Bux-221",29,"Pul va banklar","ma'ruza","2-qavat zal",80]
["oʻqit. Absamatov A.","Payshanba","14:30-15:50","Bux-21","Bux-221",29,"Pul va banklar","amaliy",413,35]
["oʻqit. Absamatov A.","Payshanba","16:00-17:20","Bux-21","Bux-121",26,"Pul va banklar","amaliy",412,35]
["oʻqit. Ziyodullayev S.","Seshanba","08:00-09:20","I-20","I-120",24,"Bank va moliya bozorlari ","ma'ruza","2-qavat zal",80]
["oʻqit. Ziyodullayev S.","Seshanba","08:00-09:20","I-20","I-220",31,"Bank va moliya bozorlari ","ma'ruza","2-qavat zal",80]
["oʻqit. Ziyodullayev S.","Seshanba","09:30-10:50","I-20","I-320",31,"Bank va moliya bozorlari ","ma'ruza","2-qavat zal",80]
["oʻqit. Ziyodullayev S.","Seshanba","09:30-10:50","I-20","I-420",34,"Bank va moliya bozorlari ","ma'ruza","2-qavat zal",80]
["oʻqit. Ziyodullayev S.","Payshanba","08:00-09:20","I-20","I-120",24,"Bank va moliya bozorlari ","amaliy",211,35]
["oʻqit. Ziyodullayev S.","Payshanba","09:30-10:50","I-20","I-220",31,"Bank va moliya bozorlari ","amaliy",316,35]
["oʻqit. Ziyodullayev S.","Juma","08:00-09:20","I-20","I-320",31,"Bank va moliya bozorlari ","amaliy",323,35]
["oʻqit. Ziyodullayev S.","Juma","09:30-10:50","I-20","I-420",34,"Bank va moliya bozorlari ","amaliy",410,35]
["oʻqit. Soatov Y.","Seshanba","11:00-12:50","Tur-20","Tur-120",26,"Turizmda innovatsiya","ma'ruza",313,80]
["oʻqit. Soatov Y.","Seshanba","11:00-12:50","Tur-20","Tur-220",32,"Turizmda innovatsiya","ma'ruza",313,80]
["oʻqit. Soatov Y.","Seshanba","11:00-12:50","Tur-20","Tur-320",13,"Turizmda innovatsiya","ma'ruza",313,80]
["oʻqit. Soatov Y.","Chorshanba","08:00-09:20","Tur-20","Tur-220",32,"Turizmda innovatsiya","amaliy",315,35]
["oʻqit. Soatov Y.","Chorshanba","09:30-10:50","Tur-20","Tur-320",13,"Turizmda innovatsiya","amaliy",415,23]
["oʻqit. Soatov Y.","Chorshanba","11:00-12:50","Tur-20","Tur-120",26,"Turizmda innovatsiya","amaliy",311,35]
["oʻqit. Soatov Y.","Dushanba","16:00-17:20","MX-19","MX-119",32,"Mehmonxona xoʻjaligida xodimlarni boshqarish","ma'ruza",216,35]
["oʻqit. Soatov Y.","Seshanba","16:00-17:21","MX-19","MX-119",32,"Mehmonxona xoʻjaligida xodimlarni boshqarish","amaliy",216,35]
["oʻqit. Soatov Y.","Payshanba","16:00-17:20","MX-19","MX-119",32,"Mehmonxona xoʻjaligida xodimlarni boshqarish","ma'ruza",216,35]
["oʻqit. Soatov Y.","Payshanba","16:00-17:20","MX-19","MX-119",32,"Mehmonxona xoʻjaligida xodimlarni boshqarish","amaliy",216,35]
["k.oʻqit. Davlatova Sh.","Seshanba","13:00-14:20","I-22","I-122",25,"Inson huquqlarini oʻrganish","maʻruza",409,100]
["k.oʻqit. Davlatova Sh.","Seshanba","13:00-14:20","I-22","I-222",25,"Inson huquqlarini oʻrganish","maʻruza",409,100]
["k.oʻqit. Davlatova Sh.","Seshanba","13:00-14:20","IRB-22","IRB-122",25,"Inson huquqlarini oʻrganish","maʻruza",409,100]
["k.oʻqit. Davlatova Sh.","Juma","11:00-12:50","MMT-22","MMT-122",25,"Inson huquqlarini oʻrganish","maʻruza",409,100]
["k.oʻqit. Davlatova Sh.","Juma","11:00-12:50","MMT-22","MMT-222",25,"Inson huquqlarini oʻrganish","maʻruza",409,100]
["k.oʻqit. Davlatova Sh.","Seshanba","13:00-14:20","Bux-22","Bux-122",25,"Inson huquqlarini oʻrganish","maʻruza",409,100]
["k.oʻqit. Davlatova Sh.","Seshanba","13:00-14:20","Bux-22","Bux-222",25,"Inson huquqlarini oʻrganish","maʻruza",409,100]
["k.oʻqit. Davlatova Sh.","Juma","13:00-14:20","Tur-22","Tur-122",25,"Inson huquqlarini oʻrganish","maʻruza",409,100]
["k.oʻqit. Davlatova Sh.","Juma","13:00-14:20","MX-22","MX-122",25,"Inson huquqlarini oʻrganish","maʻruza",409,100]
["oʻqit. Xurramov R.","Dushanba","08:00-09:20","Bux-20","Bux-120",26,"Ekonometrika ","maʻruza","2-qavat zal",80]
["oʻqit. Xurramov R.","Dushanba","08:00-09:20","Bux-20","Bux-220",32,"Ekonometrika ","maʻruza","2-qavat zal",80]
["oʻqit. Xurramov R.","Payshanba","11:00-12:50","Bux-20","Bux-120",26,"Ekonometrika ","amaliy",410,35]
["oʻqit. Xurramov R.","Payshanba","09:30-10:50","Bux-20","Bux-220",32,"Ekonometrika ","amaliy",112,35]
["oʻqit. Xurramov R.","Chorshanba","11:00-12:50","IRB-20","IRB-120",15,"Rekrutment","maʻruza",411,35]
["oʻqit. Xurramov R.","Payshanba","08:00-09:20","IRB-20","IRB-120",15,"Rekrutment","amaliy",411,35]
["oʻqit. Xurramov R.","Juma","11:00-12:50","IRB-20","IRB-120",15,"Rekrutment","amaliy",411,35]
["oʻqit. Xurramov R.","Juma","11:00-12:50","IRB-20","IRB-120",15,"Moliyaviy va iqtisodiy maʼlumotlarni tahlil qilish","amaliy",411,35]
["oʻqit. Qoʻshayev T.","Chorshanba","09:30-10:50","Bux-20","Bux-120",26,"Audit","maʻruza",112,35]
["oʻqit. Qoʻshayev T.","Chorshanba","11:00-12:50","Bux-20","Bux-220",32,"Audit","maʻruza",410,35]
["oʻqit. Qoʻshayev T.","Seshanba","09:30-10:50","Bux-20","Bux-120",26,"Audit","maʻruza","3-qavat zal",100]
["oʻqit. Qoʻshayev T.","Seshanba","09:30-10:50","Bux-20","Bux-220",32,"Audit","maʻruza","3-qavat zal",100]
["dots. Qodirov B.","Dushanba","13:00-14:20","I-19","I-119",25,"Moliya va soliqlar","maʻruza","3-qavat zal",100]
["dots. Qodirov B.","Dushanba","13:00-14:20","I-19","I-219",27,"Moliya va soliqlar","maʻruza","3-qavat zal",100]
["dots. Qodirov B.","Dushanba","13:00-14:20","KM-19","KM-119",14,"Moliya va soliqlar","maʻruza","3-qavat zal",100]
["dots. Qodirov B.","Payshanba","16:00-17:20","I-19","I-119",25,"Moliya va soliqlar","maʻruza","3-qavat zal",100]
["dots. Qodirov B.","Payshanba","16:00-17:20","I-19","I-219",27,"Moliya va soliqlar","maʻruza","3-qavat zal",100]
["dots. Qodirov B.","Payshanba","16:00-17:20","KM-19","KM-119",14,"Moliya va soliqlar","maʻruza","3-qavat zal",100]
["dots. Qodirov B.","Payshanba","13:00-14:20","I-19","I-119",25,"Moliya va soliqlar","amaliy",112,50]
["dots. Qodirov B.","Payshanba","14:30-15:50","I-19","I-219",27,"Moliya va soliqlar","amaliy",311,35]
["oʻqit. Pardayev L.","Payshanba","16:00-17:20","I-19","I-119",25,"Jahon iqtisodiyoti va xalqaro iqtisodiy munosabatlar","maʻruza","3-qavat zal",100]
["oʻqit. Pardayev L.","Payshanba","16:00-17:20","I-19","I-219",27,"Jahon iqtisodiyoti va xalqaro iqtisodiy munosabatlar","maʻruza","3-qavat zal",100]
["oʻqit. Pardayev L.","Payshanba","13:00-14:20","I-19","I-119",25,"Jahon iqtisodiyoti va xalqaro iqtisodiy munosabatlar","amaliy",112,100]
["oʻqit. Pardayev L.","Payshanba","14:30-15:50","I-19","I-219",27,"Jahon iqtisodiyoti va xalqaro iqtisodiy munosabatlar","amaliy",311,100]
["dots. Qodirov B.","Seshanba","16:00-17:20","KM-19","KM-119",14,"Soliqlar va soliqqa tortish","amaliy",315,35]
["dots. Qodirov B.","Juma","14:30-15:50","I-19","I-119",25,"Soliqlar va soliqqa tortish","amaliy",112,50]
["dots. Qodirov B.","Dushanba","14:30-15:50","I-19","I-219",27,"Soliqlar va soliqqa tortish","amaliy",311,35]
["dots. Qodirov B.","Dushanba","16:00-17:20","I-19","I-119",25,"Soliqlar va soliqqa tortish","maʻruza",414,80]
["dots. Qodirov B.","Dushanba","16:00-17:20","I-19","I-219",27,"Soliqlar va soliqqa tortish","maʻruza",414,80]
["dots. Qodirov B.","Dushanba","16:00-17:20","I-19","I-119",25,"Soliqlar va soliqqa tortish","amaliy",112,50]
["dots. Qodirov B.","Juma","13:00-14:20","I-19","I-219",27,"Soliqlar va soliqqa tortish","amaliy",311,35]
["k.oʻqit. Ismoilov Sh.","Chorshanba","14:30-15:51","Bux-21","Bux-121",26,"Buxgalteriya hisobi","maʻruza","3-qavat zal",100]
["k.oʻqit. Ismoilov Sh.","Chorshanba","14:30-15:52","Bux-21","Bux-221",29,"Buxgalteriya hisobi","maʻruza","3-qavat zal",100]
["k.oʻqit. Ismoilov Sh.","Seshanba","16:00-17:20","MMT-21","MMT-121",27,"Buxgalteriya hisobi","maʻruza","3-qavat zal",100]
["k.oʻqit. Ismoilov Sh.","Seshanba","16:00-17:20","MMT-21","MMT-221",31,"Buxgalteriya hisobi","maʻruza","3-qavat zal",100]
["k.oʻqit. Ismoilov Sh.","Chorshanba","13:00-14:20","MMT-21","MMT-221",31,"Buxgalteriya hisobi","amaliy",411,35]
["k.oʻqit. Ismoilov Sh.","Payshanba","16:00-17:20","MMT-21","MMT-121",27,"Buxgalteriya hisobi","amaliy",410,35]
["k.oʻqit. Ismoilov Sh.","Chorshanba","16:00-17:20","Bux-21","Bux-121",26,"Budjet hisobi","amaliy",412,35]
["k.oʻqit. Ismoilov Sh.","Payshanba","13:00-14:20","Bux-21","Bux-221",29,"Budjet hisobi","amaliy",412,35]
["PhD. Gadoyev S.","Seshanba","13:00-14:20","Bux-21","Bux-121",26,"Moliya","maʻruza","114-komp",50]
["PhD. Gadoyev S.","Seshanba","13:00-14:20","Bux-21","Bux-221",29,"Moliya","maʻruza","114-komp",50]
["Vokant","Chorshanba","13:00-14:20","KM-19","KM-119",14,"Jahon iqtisodiyoti va xalqaro iqtisodiy munosabatlar","maʻruza",315,35]
["Vokant","Chorshanba","13:00-14:20","KM-19","KM-119",14,"Jahon iqtisodiyoti va xalqaro iqtisodiy munosabatlar","amaliy",315,35]
["o'qit. Safarmaxmatova Z.","Chorshanba","14:30-15:50","KM-19","KM-119",14,"Amaliy ingliz tili","amaliy",315,35]
["Vokant","Chorshanba","16:00-17:20","KM-19","KM-119",14,"Inson kapitali iqtisodiyoti","maʻruza",315,35]
["Vokant","Chorshanba","16:00-17:20","KM-19","KM-119",14,"Inson kapitali iqtisodiyoti","amaliy",315,35]
["Vokant","Payshanba","13:00-14:20","KM-19","KM-119",14,"Ijtimoiy sohalar va innovatsion taraqqiyot","maʻruza",315,35]
["Vokant","Payshanba","13:00-14:20","KM-19","KM-119",14,"Ijtimoiy sohalar va innovatsion taraqqiyot","amaliy",315,35]
["Vokant","Juma","13:00-14:20","KM-19","KM-119",14,"Hayot faoliyati xavfsizligi","maʻruza",315,35]
["Vokant","Juma","13:00-14:20","KM-19","KM-119",14,"Hayot faoliyati xavfsizligi","amaliy",315,35]
["PhD. Djurayeva D.","Chorshanba","09:30-10:50","Tur-22","Tur-122",25,"Amaliy matematika 1","maʻruza","3-qavat zal",100]
["PhD. Djurayeva D.","Chorshanba","09:30-10:50","MX-22","MX-122",25,"Amaliy matematika 1","maʻruza","3-qavat zal",100]
["PhD. Djurayeva D.","Juma","08:00-09:20","Tur-22","Tur-122",25,"Amaliy matematika 1","amaliy",214,30]
["PhD. Djurayeva D.","Juma","09:30-10:50","MX-22","MX-122",25,"Amaliy matematika 1","amaliy",111,35]
["PhD. Djurayeva D.","Payshanba","09:30-10:50","I-22","I-122",25,"Amaliy matematika 1","maʻruza",313,80]
["PhD. Djurayeva D.","Payshanba","09:30-10:50","I-22","I-222",25,"Amaliy matematika 1","maʻruza",313,80]
["PhD. Djurayeva D.","Payshanba","09:30-10:50","IRB-22","IRB-122",25,"Amaliy matematika 1","maʻruza",313,80]
["o'qit. Safarmaxmatova Z.","Dushanba","11:00-12:50","Bux-22","Bux-222",25,"Xorijiy til","amaliy",215,35]
["o'qit. Safarmaxmatova Z.","Seshanba","09:30-10:50","Bux-22","Bux-222",25,"Xorijiy til","amaliy",112,50]
["o'qit. Safarmaxmatova Z.","Juma","13:00-14:20","Bux-21","Bux-121",26,"Xorijiy til","amaliy",412,35]
["o'qit. Safarmaxmatova Z.","Juma","14:30-15:50","Bux-21","Bux-221",29,"Xorijiy til","amaliy",413,35]
["o'qit. Safarmaxmatova Z.","Dushanba","14:30-15:51","Bux-19","Bux-119",30,"Amaliy ingliz tili","amaliy",111,35]
["o'qit. Safarmaxmatova Z.","Dushanba","13:00-14:20","MMT-21","MMT-221",31,"Xorijiy til","amaliy",411,35]
["o'qit. Safarmaxmatova Z.","Juma","16:00-17:20","MMT-21","MMT-121",27,"Xorijiy til","amaliy",410,35]
["o'qit. Safarmaxmatova Z.","Payshanba","16:00-17:20","M-19","M-119",26,"Amaliy ingliz tili","amaliy",110,50]
["o'qit. Safarmaxmatova Z.","Payshanba","13:00-14:20","M-19","M-219",13,"Amaliy ingliz tili","amaliy",415,23]
["o'qit.Boltayev Ch.","Seshanba","09:30-10:50","I-22","I-222",25,"Xorijiy til","amaliy",216,35]
["o'qit.Boltayev Ch.","Seshanba","11:00-12:50","I-22","I-122",25,"Xorijiy til","amaliy","2-qavat zal",80]
["o'qit.Boltayev Ch.","Juma","09:30-10:50","I-22","I-122",25,"Xorijiy til","amaliy",214,30]
["o'qit.Boltayev Ch.","Dushanba","11:00-12:50","I-22","I-222",25,"Xorijiy til","amaliy",216,35]
["o'qit.Boltayev Ch.","Chorshanba","11:00-12:50","I-22","I-122",25,"Xorijiy til","amaliy",214,30]
["o'qit.Boltayev Ch.","Chorshanba","11:00-12:50","I-22","I-222",25,"Xorijiy til","amaliy",216,35]
["o'qit.Boltayev Ch.","Dushanba","14:30-15:50","I-19","I-119",25,"Xorijiy til","amaliy",112,50]
["o'qit.Boltayev Ch.","Juma","14:30-15:50","I-19","I-219",27,"Xorijiy til","amaliy",311,35]
["oʻqit. Pardayev L.","Juma","16:00-17:20","I-19","I-119",25,"Jahon iqtisodiyoti va xalqaro iqtisodiy munosabatlar","maʻruza",313,80]
["oʻqit. Pardayev L.","Juma","16:00-17:20","I-19","I-219",27,"Jahon iqtisodiyoti va xalqaro iqtisodiy munosabatlar","maʻruza",313,80]
["o'qit. Safarmaxmatova Z.","Chorshanba","09:30-10:50","IRB-22","IRB-122",25,"Xorijiy til","amaliy",323,35]
["o'qit. Safarmaxmatova Z.","Payshanba","11:00-12:50","IRB-22","IRB-122",25,"Xorijiy til","amaliy",215,35]
["o'qit.Boltayev Ch.","Chorshanba","09:30-10:50","IRB-22","IRB-122",25,"Xorijiy til","amaliy",323,35]
["o'qit.Boltayev Ch.","Payshanba","11:00-12:50","IRB-22","IRB-122",25,"Xorijiy til","amaliy",215,35]
["o'qit. Safarmaxmatova Z.","Payshanba","14:30-15:50","KM-19","KM-119",14,"Xorijiy til","amaliy",315,35]
["o'qit. Safarmaxmatova Z.","Dushanba","09:30-10:50","IRB-22","IRB-122",25,"Xorijiy til","amaliy",323,35]
["o'qit.Boltayev Ch.","Dushanba","09:30-10:50","IRB-22","IRB-122",25,"Xorijiy til","amaliy",215,35]
["o'qit. Mamaraimova D.","Payshanba","08:00-09:20","Tur-22","Tur-122",25,"Xorijiy til","amaliy",214,30]
["o'qit. Mamaraimova D.","Payshanba","14:30-15:50","Tur-21","Tur-221",16,"Xorijiy til","amaliy","2-qavat zal",80]
["o'qit. Mamaraimova D.","Payshanba","16:00-17:20","Tur-21","Tur-121",28,"Xorijiy til","amaliy",311,35]
["o'qit. Mamaraimova D.","Juma","13:00-14:20","Tur-19","Tur-119",31,"Xorijiy til","amaliy",211,35]
["o'qit. Mamaraimova D.","Juma","11:00-12:50","MX-22","MX-122",25,"Xorijiy til","amaliy",111,35]
["o'qit. Mamaraimova D.","Juma","14:30-15:50","MX-21","MX-121",25,"Xorijiy til","amaliy",323,35]
["o'qit. Mamaraimova D.","Dushanba","13:00-14:20","MX-19","MX-119",32,"Xorijiy til","amaliy",216,35]
["o'qit. Mamaraimova D.","Juma","16:00-17:20","Tur-19","Tur-219",31,"Xorijiy til","amaliy",315,35]
["o'qit. Zoirova Sh.","Seshanba","14:30-15:50","MX-19","MX-119",32,"Mehmonxona interyeri va landshafti","maʻruza",216,35]
["o'qit. Zoirova Sh.","Chorshanba","13:00-14:20","MX-19","MX-119",32,"Mehmonxona interyeri va landshafti","maʻruza",216,35]
["o'qit. Zoirova Sh.","Chorshanba","13:00-14:20","MX-19","MX-119",32,"Mehmonxona interyeri va landshafti","amaliy",216,35]
["o'qit. Zoirova Sh.","Chorshanba","14:30-15:50","MX-19","MX-119",32,"Mehmonxona interyeri va landshafti","amaliy",216,35]
["k.oʻqit. Turayev Z.","Chorshanba","13:00-14:20","MX-21","MX-121",25,"Turizm: nazariya va amaliyot","maʻruza",409,100]
["k.oʻqit. Turayev Z.","Chorshanba","13:00-14:20","Tur-21","Tur-121",28,"Turizm: nazariya va amaliyot","maʻruza",409,100]
["k.oʻqit. Turayev Z.","Chorshanba","13:00-14:20","Tur-21","Tur-221",16,"Turizm: nazariya va amaliyot","maʻruza",409,100]
["k.oʻqit. Turayev Z.","Dushanba","13:00-14:20","MX-21","MX-121",25,"Turizm: nazariya va amaliyot","maʻruza","2-qavat zal",80]
["k.oʻqit. Turayev Z.","Dushanba","13:00-14:20","Tur-21","Tur-121",28,"Turizm: nazariya va amaliyot","maʻruza","2-qavat zal",80]
["k.oʻqit. Turayev Z.","Dushanba","13:00-14:20","Tur-21","Tur-221",16,"Turizm: nazariya va amaliyot","maʻruza","2-qavat zal",80]
["oʻqit. Poʻlatova S.","Dushanba","13:00-14:20","MX-21","MX-121",25,"Turizm va mehmonxona xoʻjaligi menejmenti","maʻruza","2-qavat zal",80]
["oʻqit. Poʻlatova S.","Dushanba","13:00-14:20","Tur-21","Tur-121",28,"Turizm va mehmonxona xoʻjaligi menejmenti","maʻruza","2-qavat zal",80]
["oʻqit. Poʻlatova S.","Dushanba","13:00-14:20","Tur-21","Tur-221",16,"Turizm va mehmonxona xoʻjaligi menejmenti","maʻruza","2-qavat zal",80]
["Kafedra mudiri","Dushanba","16:00-17:20","Tur-21","Tur-121",28,"Mikro va makroiqtisodiyot","maʻruza","2-qavat zal",80]
["Kafedra mudiri","Dushanba","16:00-17:20","Tur-21","Tur-221",16,"Mikro va makroiqtisodiyot","maʻruza","2-qavat zal",80]
["Kafedra mudiri","Dushanba","16:00-17:20","MX-21","MX-121",25,"Mikro va makroiqtisodiyot","maʻruza","2-qavat zal",80]
["k.oʻqit. Norkobilov N.","Juma","13:00-14:20","MX-21","MX-121",25,"Iqtisodiyot nazariyasi","maʻruza","2-qavat zal",80]
["k.oʻqit. Norkobilov N.","Juma","13:00-14:20","Tur-21","Tur-121",28,"Iqtisodiyot nazariyasi","maʻruza","2-qavat zal",80]
["k.oʻqit. Norkobilov N.","Juma","13:00-14:20","Tur-21","Tur-221",16,"Iqtisodiyot nazariyasi","maʻruza","2-qavat zal",80]
["Kafedra mudiri","Juma","13:00-14:20","Tur-21","Tur-221",16,"Mikro va makroiqtisodiyot","maʻruza","2-qavat zal",80]
["Kafedra mudiri","Juma","13:00-14:20","Tur-21","Tur-121",28,"Mikro va makroiqtisodiyot","maʻruza","2-qavat zal",80]
["Kafedra mudiri","Juma","13:00-14:20","MX-21","MX-121",25,"Mikro va makroiqtisodiyot","maʻruza","2-qavat zal",80]
["Kafedra mudiri","Chorshanba","14:30-15:50","Tur-21","Tur-221",16,"Mikro va makroiqtisodiyot","amaliy",220,35]
["Kafedra mudiri","Chorshanba","16:00-17:20","Tur-21","Tur-121",28,"Mikro va makroiqtisodiyot","amaliy","2-qavat zal",80]
["oʻqit. Poʻlatova S.","Payshanba","14:30-15:50","Tur-21","Tur-121",28,"Turizm va mehmonxona xoʻjaligi menejmenti","maʻruza",217,35]
["oʻqit. Poʻlatova S.","Payshanba","16:00-17:20","Tur-21","Tur-221",16,"Turizm va mehmonxona xoʻjaligi menejmenti","maʻruza",220,35]
["k.oʻqit. Norkobilov N.","Juma","14:30-15:50","Tur-21","Tur-121",28,"Iqtisodiyot nazariyasi","amaliy",217,35]
["Kafedra mudiri","Juma","14:30-15:50","Tur-21","Tur-121",28,"Mikro va makroiqtisodiyot","amaliy",217,35]
["k.oʻqit. Norkobilov N.","Juma","14:30-15:50","Tur-21","Tur-221",16,"Iqtisodiyot nazariyasi","amaliy",220,35]
["Kafedra mudiri","Juma","14:30-15:50","Tur-21","Tur-221",16,"Mikro va makroiqtisodiyot","amaliy",220,35]
["Kafedra mudiri","Seshanba","14:30-15:50","MX-21","MX-121",25,"Mikro va makroiqtisodiyot","amaliy",323,35]
["oʻqit. Poʻlatova S.","Payshanba","16:00-17:20","MX-21","MX-121",25,"Turizm va mehmonxona xoʻjaligi menejmenti","amaliy",323,35]
["Kafedra mudiri","Seshanba","14:30-15:50","MX-21","MX-121",25,"Mikro va makroiqtisodiyot","amaliy",323,35]
["k.oʻqit. Norkobilov N.","Seshanba","14:30-15:50","MX-21","MX-121",25,"Iqtisodiyot nazariyasi","amaliy",323,35]
["Kafedra mudiri","Seshanba","16:00-17:20","MX-21","MX-121",25,"Mikro va makroiqtisodiyot","amaliy",323,35]
["Kafedra mudiri","Dushanba","08:00-09:20","I-22","I-122",25,"Iqtisodiy taʼlimotlar tarixi ","maʻruza",313,80]
["Kafedra mudiri","Dushanba","08:00-09:20","I-22","I-222",25,"Iqtisodiy taʼlimotlar tarixi ","maʻruza",313,80]
["Kafedra mudiri","Shanba","08:00-09:20","IRB-22","IRB-122",25,"Iqtisodiy taʼlimotlar tarixi ","maʻruza",313,80]

{"sheet":"Нач. инф.","index":1,"n_rows":123,"n_cols":10,"rows_kept":123,"cut":false,"hidden":false,"merged":[]}
["Номер аудитории","Вместимость","Поток","Учебные дни","Время  занятий","Преподаватели","Группа","Количество студентов","Дисциплина","Тип дисциплини"]
[110,50,null,"Dushanba","08:00-09:20","DcS. Otamurodov Sh.","I-122",25,"Amaliy ingliz tili","ma'ruza"]
[111,35,null,"Seshanba","09:30-10:50","dot. Absamatov A.","I-222",25,"Amaliy matematika 1","amaliy"]
[112,50,null,"Chorshanba","11:00-12:50","dots. Avazov E.","IRB-122",25,"Amaliy matematika 2","laboratoriya"]
["114-komp",50,null,"Payshanba","13:00-14:20","dots. Mamadjanova T.","Bux-122",25,"Animatorlik xizmatini tashkil qilish","seminar"]
[211,35,null,"Juma","14:30-15:50","dots. Mirzayev A.","Bux-222",25,"Atrof-muhit va tabiiy resurslar iqtisodiyoti"]
[214,30,null,"Shanba","16:00-17:20","dots. Qodirov B.","MMT-122",25,"Audit"]
[215,35,null,null,"17:30-18:50","dots. Rajabov Oʻ","MMT-222",25,"Auditning xalqaro standartlari"]
[216,35,null,null,"19:00-20:20","k.oʻqit. Bobomurodov I.","Tur-122",25,"Bank va moliya bozorlari "]
[217,35,null,null,null,"k.oʻqit. E.Xurramov","MX-122",25,"Banklarda buxgalteriya hisobi"]
[220,35,null,null,null,"k.oʻqit. Ismatov Sh.","MMT-121",28,"Biznes intellekt                            "]
["2-qavat zal",80,null,null,null,"k.oʻqit. Ismoilov Sh.","MMT-221",30,"Biznes matematika "]
[311,35,null,null,null,"k.oʻqit. Maxmudov O.","I-121",30,"Biznesda buxgalteriya hisobi"]
[313,80,null,null,null,"k.oʻqit. Norkobilov N.","I-221",31,"Biznesga kirish"]
[315,35,null,null,null,"k.oʻqit. Shodiyev A.","IRB-121",23,"Budjet hisobi"]
[316,35,null,null,null,"k.oʻqit. Turanov M.","Bux-121",29,"Buxgalteriya hisobi"]
[318,35,null,null,null,"oʻqit. Abdurahimov S.","Bux-221",32,"Davlat budjeti"]
[319,35,null,null,null,"oʻqit. Absamatov A.","MX-121",30,"Davlat tilida ish yuritish"]
[320,35,null,null,null,"oʻqit. Aliyarov O.","Tur-121",30,"Davlat tilini sohada qoʻllanilishi"]
[323,35,null,null,null,"oʻqit. Amonov M.","Tur-221",25,"Dinamik makroiqtisodiyot"]
["3-qavat zal",100,null,null,null,"oʻqit. Axmedov A.","I-120",30,"Ekonometrika "]
[409,100,null,null,null,"oʻqit. Esankulov A.","I-220",13,"Ekonometrika kirish"]
[410,35,null,null,null,"oʻqit. Hamzayeva D.","I-320",30,"Ekskursiya xizmatini tashkil qilish"]
[411,35,null,null,null,"oʻqit. Imamova M","I-420",31,"Falsafa"]
[412,35,null,null,null,"oʻqit. Joʻrayev H.","IRB-120",32,"Gʻaznachilik"]
[413,35,null,null,null,"oʻqit. Mamatqulov T.","Bux-120",34,"Global geosiyosat, migratsiya va notekis rivojlanish "]
[414,100,null,null,null,"oʻqit. Mengniyazov A.","Bux-220",16,"Global iqtisodiy rivojlanish"]
[415,23,null,null,null,"oʻqit. Nurmatov N.","MMT-120",31,"Hayot faoliyati xavfsizligi"]
[null,null,null,null,null,"oʻqit. Ortiqov Sh.","MMT-220",32,"Ichki audit"]
[null,null,null,null,null,"oʻqit. Panjiyeva N.","MMT-320",31,"Ijtimoiy sohalar va innovatsion taraqqiyot"]
[null,null,null,null,null,"oʻqit. Pardayev L.","Tur-120",30,"Innovatsion iqtisodiyot"]
[null,null,null,null,null,"oʻqit. Pirimqulov O.","Tur-220",23,"Innovatsion menejment"]
[null,null,null,null,null,"oʻqit. Poʻlatova S.","Tur-320",27,"Inson kapitali iqtisodiyoti"]
[null,null,null,null,null,"oʻqit. Qayumov A.","MX-120",26,"Inson resurslarini boshqarish "]
[null,null,null,null,null,"oʻqit. Qoʻshayev T.","MX-220",13,"Investitsiya va innovatsiyalar"]
[null,null,null,null,null,"oʻqit. Ravzatov J.","I-119",25,"Investitsiyalar tahlili"]
[null,null,null,null,null,"oʻqit. Shaymatova N.","I-219",13,"Iqtisodchilar uchun matematika"]
[null,null,null,null,null,"oʻqit. Shoydaliyev U.","KM-119",28,"Iqtisodiy oʻsish"]
[null,null,null,null,null,"oʻqit. Soatov Y.","Bux-119",28,"Iqtisodiy rivojlanish strategiyasi"]
[null,null,null,null,null,"oʻqit. Sobitova R.","Bux-219",14,"Iqtisodiy siyosatga kirish"]
[null,null,null,null,null,"oʻqit. Turayev Z.","MX-119",22,"Iqtisodiy tahlil "]
[null,null,null,null,null,"oʻqit. Usmonov Ch.","MX-219",8,"Iqtisodiy taʼlimotlar tarixi "]
[null,null,null,null,null,"oʻqit. Xudayarova Z.","Tur-119",23,"Iqtisodiy va turizm geografiyasi"]
[null,null,null,null,null,"oʻqit. Xudoyqulov A.","Tur-219",10,"Iqtisodiyot nazariyasi"]
[null,null,null,null,null,"oʻqit. Xurramov R.","Tur-319",24,"Iqtisodiyotda  Axborot  texnologiyalar"]
[null,null,null,null,null,"oʻqit. Ziyodullayev S.","M-119",25,"Iqtisodiyotda  informatsion kommunikatsion  texnologiyalar"]
[null,null,null,null,null,"oʻqit. Zokirova G.","M-219",13,"Iqtisoslashgan mehmonxona turlari "]
[null,null,null,null,null,"oʻqit.Yarmatov Sh.",null,null,"Jahon iqtisodiyoti va xalqaro iqtisodiy munosabatlar"]
[null,null,null,null,null,"PhD. Buranova L.",null,null,"Jismoniy madaniyat va sport "]
[null,null,null,null,null,"PhD. Gadoyev S.",null,null,"Kadrlar menejmenti"]
[null,null,null,null,null,"PhD. Ollokulova F.",null,null,"Karyerani boshqarish"]
[null,null,null,null,null,"PhD. Toʻlakov U.",null,null,"Karyerani rivojlantirish"]
[null,null,null,null,null,"PhD. Toshaliyeva S.",null,null,"Korxona iqtisodiyoti"]
[null,null,null,null,null,"PhD. Xoʻjageldiyev Ch.",null,null,"Kreativ fikrlash "]
[null,null,null,null,null,null,null,null,"Makroiqtisodiyot"]
[null,null,null,null,null,null,null,null,"Manejment. Marketing"]
[null,null,null,null,null,null,null,null,"Marketing                                        "]
[null,null,null,null,null,null,null,null,"Mehmondorchilik va turizm sohasiga kirish"]
[null,null,null,null,null,null,null,null,"Mehmondorchilik va turizm tarixi"]
[null,null,null,null,null,null,null,null,"Mehmonxona taʼminoti"]
[null,null,null,null,null,null,null,null,"Mehmonxona xoʻjaligida xavfsizlik xizmati"]
[null,null,null,null,null,null,null,null,"Mehmonxona xoʻjaligida xodimlarni boshqarish"]
[null,null,null,null,null,null,null,null,"Mehnat iqtisodiyoti"]
[null,null,null,null,null,null,null,null,"Mehnatni muhofaza qilish"]
[null,null,null,null,null,null,null,null,"Menejment                          "]
[null,null,null,null,null,null,null,null,"Menejment (korporativ boshqaruv)                                                    "]
[null,null,null,null,null,null,null,null,"Mexmonxona interyeri va landshafti"]
[null,null,null,null,null,null,null,null,"Mexmonxona xoʻjaligi marketingi"]
[null,null,null,null,null,null,null,null,"Mexmonxona xoʻjaligi menejmenti"]
[null,null,null,null,null,null,null,null,"Mexmonxonada breding"]
[null,null,null,null,null,null,null,null,"Mikro va makroiqtisodiyot"]
[null,null,null,null,null,null,null,null,"Mikroiqtisodiyot"]
[null,null,null,null,null,null,null,null,"Mikroiqtisodiyot.Makroiqtisodiyot"]
[null,null,null,null,null,null,null,null,"Mintaqaviy iqtisodiyot"]
[null,null,null,null,null,null,null,null,"Mintaqaviy turizm resurslari"]
[null,null,null,null,null,null,null,null,"Moliya"]
[null,null,null,null,null,null,null,null,"Moliya bozori va moliyaviy texnologiyalar"]
[null,null,null,null,null,null,null,null,"Moliya va soliqlar"]
[null,null,null,null,null,null,null,null,"Moliyaviy tahlil"]
[null,null,null,null,null,null,null,null,"Moliyaviy va iqtisodiy maʼlumotlarni tahlil qilish"]
[null,null,null,null,null,null,null,null,"Muzokora koʻnikmalari"]
[null,null,null,null,null,null,null,null,"Oʻzbek (rus tili)"]
[null,null,null,null,null,null,null,null,"Oʻzbek tilining sohada qoʻllanilishi"]
[null,null,null,null,null,null,null,null,"Oʻzbekistonning eng yangi tarixi"]
[null,null,null,null,null,null,null,null,"Pensiya ishi"]
[null,null,null,null,null,null,null,null,"Personal auditi va nazorati"]
[null,null,null,null,null,null,null,null,"Pul va banklar"]
[null,null,null,null,null,null,null,null,"Raqamli iqtisodiyot"]
[null,null,null,null,null,null,null,null,"Rekrutment"]
[null,null,null,null,null,null,null,null,"Restoran biznesi"]
[null,null,null,null,null,null,null,null,"Rus tili"]
[null,null,null,null,null,null,null,null,"Sanatoriya va kurort ishi"]
[null,null,null,null,null,null,null,null,"Soliqlar va soliqqa tortish"]
[null,null,null,null,null,null,null,null,"Sport sogʻlolashtirish turizmi"]
[null,null,null,null,null,null,null,null,"Statistika"]
[null,null,null,null,null,null,null,null,"Strategik boshqaruv "]
[null,null,null,null,null,null,null,null,"Strategik menejment"]
[null,null,null,null,null,null,null,null,"Sugʻurta ishi"]
[null,null,null,null,null,null,null,null,"Tadqiqot metodologiyasi"]
[null,null,null,null,null,null,null,null,"Tashqi iqtisodiy faoliyat asoslari"]
[null,null,null,null,null,null,null,null,"Taym menejment"]
[null,null,null,null,null,null,null,null,"Turizm marketingi"]
[null,null,null,null,null,null,null,null,"Turizm menejmenti"]
[null,null,null,null,null,null,null,null,"Turizm nazariyasi va amaliyoti"]
[null,null,null,null,null,null,null,null,"Turizm va mehmonxona iqtisodiyoti"]
[null,null,null,null,null,null,null,null,"Turizm va mehmonxona xoʻjaligi menejmenti"]
[null,null,null,null,null,null,null,null,"Turizm va mehmonxona xoʻjaligida buxgalteriya hisobi va audit"]
[null,null,null,null,null,null,null,null,"Turizm va mexmonxona xoʻjaligi iqtisodiyoti"]
[null,null,null,null,null,null,null,null,"Turizm va mexmonxona xoʻjaligi menejmenti"]
[null,null,null,null,null,null,null,null,"Turizm: nazariya va amaliyot"]
[null,null,null,null,null,null,null,null,"Turizmda axborot-kommunikatsiya texnologiyalari "]
[null,null,null,null,null,null,null,null,"Turizmda innovatsiya"]
[null,null,null,null,null,null,null,null,"Turizmda logistika"]
[null,null,null,null,null,null,null,null,"Turizmda loyihalashtirish va prognozlashtirish"]
[null,null,null,null,null,null,null,null,"Turizmda transport xizmatlari"]
[null,null,null,null,null,null,null,null,"Turizmda xaritalashtirish va turistik marshrutlarni ishlab chiqish"]
[null,null,null,null,null,null,null,null,"Xalqaro iqtisodiyoti "]
[null,null,null,null,null,null,null,null,"Xalqaro marketing"]
[null,null,null,null,null,null,null,null,"Xalqaro moliya "]
[null,null,null,null,null,null,null,null,"Xalqaro turizm: nazariya va amaliyot"]
[null,null,null,null,null,null,null,null,"Xodimlarning innovatsion faolligini boshqarish"]
[null,null,null,null,null,null,null,null,"Xorijiy til"]
[null,null,null,null,null,null,null,null,"Yetakchilikni rivojlantirish"]

{"sheet":"Расп. занят.","index":2,"n_rows":52,"n_cols":6,"rows_kept":52,"cut":false,"hidden":false,"merged":[[44,1,51,1],[53,1,53,5],[4,1,11,1],[12,1,19,1],[20,1,27,1],[28,1,35,1],[36,1,43,1]]}
[]
[]
[]
[null,"Дни недели","Пары","Время занятий","IRB-122-guruh","Аудитория"]
[null,"Dushanba","I","08:00","Iqtisodiyotda axborot-kommunikatsion texnologiyalar va tizimlar (laboratoriya) \r\no'qit. Xuramov S.",311]
[null,null,"II","09:30","Xorijiy til (amaliy) \r\no'qit. Safarmaxmatova Z. / \r\nXorijiy til (amaliy) \r\no'qit.Boltayev Ch.","323 / 215"]
[null,null,"III","11:00"]
[null,null,"IV","13:00"]
[null,null,"V","14:30"]
[null,null,"VI","16:00"]
[null,null,"VII","17:30"]
[null,null,"VIII","19:00"]
[null,"Seshanba","I","08:00"]
[null,null,"II","09:30"]
[null,null,"III","11:00"]
[null,null,"IV","13:00","Inson huquqlarini oʻrganish (maʻruza) \r\nk.oʻqit. Davlatova Sh.",409]
[null,null,"V","14:30"]
[null,null,"VI","16:00"]
[null,null,"VII","17:30"]
[null,null,"VIII","19:00"]
[null,"Chorshanba","I","08:00"]
[null,null,"II","09:30","Xorijiy til (amaliy) \r\no'qit. Safarmaxmatova Z. / \r\nXorijiy til (amaliy) \r\no'qit.Boltayev Ch.",323]
[null,null,"III","11:00"]
[null,null,"IV","13:00"]
[null,null,"V","14:30"]
[null,null,"VI","16:00"]
[null,null,"VII","17:30"]
[null,null,"VIII","19:00"]
[null,"Payshanba","I","08:00","Iqtisodiyotda axborot-kommunikatsion texnologiyalar va tizimlar (ma'ruza) \r\no'qit. Xuramov S.",409]
[null,null,"II","09:30","Rus tili (amaliy) \r\no'qit. Ximoydinov A. / \r\nRus tili (amaliy) \r\no'qit. Usmanova G. / \r\nAmaliy matematika 1 (maʻruza) \r\nPhD. Djurayeva D.","211 / 214 / 313"]
[null,null,"III","11:00","Xorijiy til (amaliy) \r\no'qit. Safarmaxmatova Z. / \r\nXorijiy til (amaliy) \r\no'qit.Boltayev Ch.",215]
[null,null,"IV","13:00"]
[null,null,"V","14:30"]
[null,null,"VI","16:00"]
[null,null,"VII","17:30"]
[null,null,"VIII","19:00"]
[null,"Juma","I","08:00"]
[null,null,"II","09:30"]
[null,null,"III","11:00"]
[null,null,"IV","13:00"]
[null,null,"V","14:30"]
[null,null,"VI","16:00"]
[null,null,"VII","17:30"]
[null,null,"VIII","19:00"]
[null,"Shanba","I","08:00","Iqtisodiy taʼlimotlar tarixi  (maʻruza) \r\nKafedra mudiri",313]
[null,null,"II","09:30"]
[null,null,"III","11:00"]
[null,null,"IV","13:00"]
[null,null,"V","14:30"]
[null,null,"VI","16:00"]
[null,null,"VII","17:30"]
[null,null,"VIII","19:00"]

{"sheet":"Расп. занят. выбор.","index":3,"n_rows":28,"n_cols":6,"rows_kept":28,"cut":false,"hidden":false,"merged":[[24,1,27,1],[4,1,7,1],[8,1,11,1],[12,1,15,1],[16,1,19,1],[20,1,23,1]]}
[]
[]
[]
[null,"Дни недели","Пары","Время занятий",null,"Аудитория"]
[null,"Dushanba","I"]
[null,null,"II"]
[null,null,"III"]
[null,null,"IV"]
[null,"Seshanba","I"]
[null,null,"II"]
[null,null,"III"]
[null,null,"IV"]
[null,"Chorshanba","I"]
[null,null,"II"]
[null,null,"III"]
[null,null,"IV"]
[null,"Payshanba","I"]
[null,null,"II"]
[null,null,"III"]
[null,null,"IV"]
[null,"Juma","I"]
[null,null,"II"]
[null,null,"III"]
[null,null,"IV"]
[null,"Shanba","I"]
[null,null,"II"]
[null,null,"III"]
[null,null,"IV"]

{"sheet":"Расп. преп.","index":4,"n_rows":52,"n_cols":6,"rows_kept":52,"cut":false,"hidden":false,"merged":[[44,1,51,1],[53,1,53,5],[4,1,11,1],[12,1,19,1],[20,1,27,1],[28,1,35,1],[36,1,43,1]]}
[]
[]
[]
[null,"Дни недели","Пары","Время занятий","PhD. Toʻlakov U.","Аудитория"]
[null,"Dushanba","I",{"$f":"LEFT('Нач. инф.'!E2,5)","v":"08:00"}]
[null,null,"II",{"$f":"LEFT('Нач. инф.'!E3,5)","v":"09:30"}]
[null,null,"III",{"$f":"LEFT('Нач. инф.'!E4,5)","v":"11:00"}]
[null,null,"IV",{"$f":"LEFT('Нач. инф.'!E5,5)","v":"13:00"}]
[null,null,"V",{"$f":"LEFT('Нач. инф.'!E6,5)","v":"14:30"}]
[null,null,"VI",{"$f":"LEFT('Нач. инф.'!E7,5)","v":"16:00"}]
[null,null,"VII",{"$f":"LEFT('Нач. инф.'!E8,5)","v":"17:30"}]
[null,null,"VIII",{"$f":"LEFT('Нач. инф.'!E9,5)","v":"19:00"}]
[null,"Seshanba","I",{"$f":"LEFT('Нач. инф.'!E2,5)","v":"08:00"}]
[null,null,"II",{"$f":"LEFT('Нач. инф.'!E3,5)","v":"09:30"}]
[null,null,"III",{"$f":"LEFT('Нач. инф.'!E4,5)","v":"11:00"}]
[null,null,"IV",{"$f":"LEFT('Нач. инф.'!E5,5)","v":"13:00"},"Davlat budjeti (ma'ruza) \r\nM-119 M-219",110]
[null,null,"V",{"$f":"LEFT('Нач. инф.'!E6,5)","v":"14:30"}]
[null,null,"VI",{"$f":"LEFT('Нач. инф.'!E7,5)","v":"16:00"}]
[null,null,"VII",{"$f":"LEFT('Нач. инф.'!E8,5)","v":"17:30"}]
[null,null,"VIII",{"$f":"LEFT('Нач. инф.'!E9,5)","v":"19:00"}]
[null,"Chorshanba","I",{"$f":"LEFT('Нач. инф.'!E2,5)","v":"08:00"}]
[null,null,"II",{"$f":"LEFT('Нач. инф.'!E3,5)","v":"09:30"}]
[null,null,"III",{"$f":"LEFT('Нач. инф.'!E4,5)","v":"11:00"}]
[null,null,"IV",{"$f":"LEFT('Нач. инф.'!E5,5)","v":"13:00"}]
[null,null,"V",{"$f":"LEFT('Нач. инф.'!E6,5)","v":"14:30"},"Davlat budjeti (amaliy) \r\nM-119",110]
[null,null,"VI",{"$f":"LEFT('Нач. инф.'!E7,5)","v":"16:00"},"Davlat budjeti (amaliy) \r\nM-219",415]
[null,null,"VII",{"$f":"LEFT('Нач. инф.'!E8,5)","v":"17:30"}]
[null,null,"VIII",{"$f":"LEFT('Нач. инф.'!E9,5)","v":"19:00"}]
[null,"Payshanba","I",{"$f":"LEFT('Нач. инф.'!E2,5)","v":"08:00"}]
[null,null,"II",{"$f":"LEFT('Нач. инф.'!E3,5)","v":"09:30"}]
[null,null,"III",{"$f":"LEFT('Нач. инф.'!E4,5)","v":"11:00"}]
[null,null,"IV",{"$f":"LEFT('Нач. инф.'!E5,5)","v":"13:00"}]
[null,null,"V",{"$f":"LEFT('Нач. инф.'!E6,5)","v":"14:30"}]
[null,null,"VI",{"$f":"LEFT('Нач. инф.'!E7,5)","v":"16:00"}]
[null,null,"VII",{"$f":"LEFT('Нач. инф.'!E8,5)","v":"17:30"}]
[null,null,"VIII",{"$f":"LEFT('Нач. инф.'!E9,5)","v":"19:00"}]
[null,"Juma","I",{"$f":"LEFT('Нач. инф.'!E2,5)","v":"08:00"}]
[null,null,"II",{"$f":"LEFT('Нач. инф.'!E3,5)","v":"09:30"}]
[null,null,"III",{"$f":"LEFT('Нач. инф.'!E4,5)","v":"11:00"}]
[null,null,"IV",{"$f":"LEFT('Нач. инф.'!E5,5)","v":"13:00"}]
[null,null,"V",{"$f":"LEFT('Нач. инф.'!E6,5)","v":"14:30"}]
[null,null,"VI",{"$f":"LEFT('Нач. инф.'!E7,5)","v":"16:00"}]
[null,null,"VII",{"$f":"LEFT('Нач. инф.'!E8,5)","v":"17:30"}]
[null,null,"VIII",{"$f":"LEFT('Нач. инф.'!E9,5)","v":"19:00"}]
[null,"Shanba","I",{"$f":"LEFT('Нач. инф.'!E2,5)","v":"08:00"}]
[null,null,"II",{"$f":"LEFT('Нач. инф.'!E3,5)","v":"09:30"}]
[null,null,"III",{"$f":"LEFT('Нач. инф.'!E4,5)","v":"11:00"}]
[null,null,"IV",{"$f":"LEFT('Нач. инф.'!E5,5)","v":"13:00"}]
[null,null,"V",{"$f":"LEFT('Нач. инф.'!E6,5)","v":"14:30"}]
[null,null,"VI",{"$f":"LEFT('Нач. инф.'!E7,5)","v":"16:00"}]
[null,null,"VII",{"$f":"LEFT('Нач. инф.'!E8,5)","v":"17:30"}]
[null,null,"VIII",{"$f":"LEFT('Нач. инф.'!E9,5)","v":"19:00"}]

{"sheet":"Расп. ауд.","index":5,"n_rows":52,"n_cols":6,"rows_kept":52,"cut":false,"hidden":false,"merged":[[53,1,53,5],[44,1,51,1],[4,1,11,1],[12,1,19,1],[20,1,27,1],[28,1,35,1],[36,1,43,1]]}
[]
[]
[]
[null,"Дни недели","Пары","Время занятий","110-xona","Группа"]
[null,"Dushanba","I","08:00"]
[null,null,"II","09:30"]
[null,null,"III","11:00"]
[null,null,"IV","13:00","Pensiya ishi (ma'ruza) \noʻqit. Shoydaliyev U. / \nGʻaznachilik (ma'ruza) \nk.oʻqit. Ismoilov Sh.","M-119 / M-219"]
[null,null,"V","14:30"]
[null,null,"VI","16:00"]
[null,null,"VII","17:30"]
[null,null,"VIII","19:00"]
[null,"Seshanba","I","08:00"]
[null,null,"II","09:30"]
[null,null,"III","11:00"]
[null,null,"IV","13:00","Davlat budjeti (ma'ruza) \r\nPhD. Toʻlakov U.","M-119 / M-219"]
[null,null,"V","14:30","Moliya (amaliy) \r\nk.oʻqit. Maxmudov O.","M-119"]
[null,null,"VI","16:00","Pensiya ishi (amaliy) \r\noʻqit. Shoydaliyev U. / \r\nGʻaznachilik (amaliy) \r\nk.oʻqit. Ismoilov Sh.","M-119"]
[null,null,"VII","17:30"]
[null,null,"VIII","19:00"]
[null,"Chorshanba","I","08:00"]
[null,null,"II","09:30"]
[null,null,"III","11:00"]
[null,null,"IV","13:00","Moliya (ma'ruza) \r\nk.oʻqit. Maxmudov O.","M-119 / M-219"]
[null,null,"V","14:30","Davlat budjeti (amaliy) \r\nPhD. Toʻlakov U.","M-119"]
[null,null,"VI","16:00"]
[null,null,"VII","17:30"]
[null,null,"VIII","19:00"]
[null,"Payshanba","I","08:00"]
[null,null,"II","09:30"]
[null,null,"III","11:00"]
[null,null,"IV","13:00"]
[null,null,"V","14:30"]
[null,null,"VI","16:00"]
[null,null,"VII","17:30"]
[null,null,"VIII","19:00"]
[null,"Juma","I","08:00"]
[null,null,"II","09:30"]
[null,null,"III","11:00"]
[null,null,"IV","13:00"]
[null,null,"V","14:30"]
[null,null,"VI","16:00"]
[null,null,"VII","17:30"]
[null,null,"VIII","19:00"]
[null,"Shanba","I","08:00"]
[null,null,"II","09:30"]
[null,null,"III","11:00"]
[null,null,"IV","13:00"]
[null,null,"V","14:30"]
[null,null,"VI","16:00"]
[null,null,"VII","17:30"]
[null,null,"VIII","19:00"]